Body Name,Body,Service Level,Expense Type,Expense Code,Narrative,Date,Transaction Number,Amount,Capital and Revenue,Supplier Name,Supplier ID
South Ribble Borough Council,http://statistics.data.gov.uk/id/local-authority/30UE,Central Support Services,4040,Furniture- Equip & Materials,see credit HBCV485485,17/03/2021,0000462223,325.20,Revenue,AA UK CV t/a Hydrair Truck & Trailer,0
South Ribble Borough Council,http://statistics.data.gov.uk/id/local-authority/30UE,Central Support Services,4248,Communications & Comuting,Licence for Access Applications - Education People HR Core for period 01/04/21 - 31/03/22,10/03/2021,0000465208,"24,843.22",Revenue,Access Group Ltd,0
South Ribble Borough Council,http://statistics.data.gov.uk/id/local-authority/30UE,Central Support Services,4241,Communications & Comuting,"2 x Apple 11-inch iPad Pro Wi-Fi + Cellular 128GB - Space Grey, 2 x Apple Smart Folio - Flip cover for tablet - polyur ",03/03/2021,0000464870,"1,634.00",Revenue,ACS SYSTEMS UK LTD,0
South Ribble Borough Council,http://statistics.data.gov.uk/id/local-authority/30UE,Central Support Services,4241,Communications & Comuting,2 x Smart Folio keyboard 11`` @ 149.00 each,10/03/2021,0000465178,298.00,Revenue,ACS SYSTEMS UK LTD,0
South Ribble Borough Council,http://statistics.data.gov.uk/id/local-authority/30UE,Central Support Services,4241,Communications & Comuting,3 x HP 250 G8 - Core i5 1035G1 / 1 GHz - Win 10 Pro 64-bit - 8 GB RAM - 256 GB SSD TLC - 15.6in 2 x Manhattan USB-A to Serial converter ,19/03/2021,0000465276,"1,863.90",Revenue,ACS SYSTEMS UK LTD,0
South Ribble Borough Council,http://statistics.data.gov.uk/id/local-authority/30UE,Recreation & Sport,4894,Miscellaneous Expenses,ABCD Training 24/02/21 - 3 attendees,24/03/2021,0000465932,300.00,Revenue,ACTIVE LANCASHIRE,0
South Ribble Borough Council,http://statistics.data.gov.uk/id/local-authority/30UE,Central Support Services,4570,Services,Spec repair to YA19 NGN on 17.2.21 - JFC16168,05/03/2021,0000464989,190.62,Revenue,Alan Edwards (Edwards Technical),0
South Ribble Borough Council,http://statistics.data.gov.uk/id/local-authority/30UE,Central Support Services,4570,Services,Spec Repair YD19 AYK JFC16183,05/03/2021,0000464989,168.13,Revenue,Alan Edwards (Edwards Technical),0
South Ribble Borough Council,http://statistics.data.gov.uk/id/local-authority/30UE,Central Support Services,4570,Services,Spec repair to YD19 ATY on 2.3.21 JFC16290,17/03/2021,0000465095,85.83,Revenue,Alan Edwards (Edwards Technical),0
South Ribble Borough Council,http://statistics.data.gov.uk/id/local-authority/30UE,Central Support Services,4570,Services,Spec repair to YA19 NGN on 2.3.21 - JFC16273,17/03/2021,0000465095,85.83,Revenue,Alan Edwards (Edwards Technical),0
South Ribble Borough Council,http://statistics.data.gov.uk/id/local-authority/30UE,Central Support Services,4570,Services,Spec repair to YD19 ATK on 2.3.21 - JFC16244,17/03/2021,0000465095,85.84,Revenue,Alan Edwards (Edwards Technical),0
South Ribble Borough Council,http://statistics.data.gov.uk/id/local-authority/30UE,Central Support Services,1131,Salaries,"Name redacted: Dacia Duster - 1.5 Blue dCi Comfort 5dr, Solid - Glacier White, 3 Years, 15,000 miles p/a, Estate, Manual, Diesel",03/03/2021,0000464125,"3,458.23",Revenue,Alphabet (Uk) Fleet Management Ltd,0
South Ribble Borough Council,http://statistics.data.gov.uk/id/local-authority/30UE,Capital,C230,Capital Other Land & Bldgs,Please carry out Asbestos R&D survey for Worden Hall as per NAME REDACTED request ,17/03/2021,0000465219,780.00,Revenue,APEC Environmental Ltd,0
South Ribble Borough Council,http://statistics.data.gov.uk/id/local-authority/30UE,Economic Development,1131,Salaries,VIN REDACTED - NAME REDACTED,26/03/2021,0000465266,251.97,Revenue,Arnold Clark Finance Ltd (Lease Cars),0
South Ribble Borough Council,http://statistics.data.gov.uk/id/local-authority/30UE,Economic Development,1131,Salaries,VAT,26/03/2021,0000465266,22.13,Revenue,Arnold Clark Finance Ltd (Lease Cars),0
South Ribble Borough Council,http://statistics.data.gov.uk/id/local-authority/30UE,Short Term Debtors,0001,Balance Sheet,- VAT,26/03/2021,0000465266,-22.13,Revenue,Arnold Clark Finance Ltd (Lease Cars),0
South Ribble Borough Council,http://statistics.data.gov.uk/id/local-authority/30UE,Economic Development,1131,Salaries,VIN REDACTED - NAME REDACTED,26/03/2021,0000465267,251.97,Revenue,Arnold Clark Finance Ltd (Lease Cars),0
South Ribble Borough Council,http://statistics.data.gov.uk/id/local-authority/30UE,Economic Development,1131,Salaries,VAT,26/03/2021,0000465267,22.13,Revenue,Arnold Clark Finance Ltd (Lease Cars),0
South Ribble Borough Council,http://statistics.data.gov.uk/id/local-authority/30UE,Short Term Debtors,0001,Balance Sheet,- VAT,26/03/2021,0000465267,-22.13,Revenue,Arnold Clark Finance Ltd (Lease Cars),0
South Ribble Borough Council,http://statistics.data.gov.uk/id/local-authority/30UE,Central Support Services,1131,Salaries,VIN REDACTED - NAME REDACTED,26/03/2021,0000465268,"2,768.28",Revenue,Arnold Clark Finance Ltd (Lease Cars),0
South Ribble Borough Council,http://statistics.data.gov.uk/id/local-authority/30UE,Central Support Services,1131,Salaries,VAT,26/03/2021,0000465268,227.12,Revenue,Arnold Clark Finance Ltd (Lease Cars),0
South Ribble Borough Council,http://statistics.data.gov.uk/id/local-authority/30UE,Short Term Debtors,0001,Balance Sheet,- VAT,26/03/2021,0000465268,-227.12,Revenue,Arnold Clark Finance Ltd (Lease Cars),0
South Ribble Borough Council,http://statistics.data.gov.uk/id/local-authority/30UE,Economic Development,1131,Salaries,VIN REDACTED - NAME REDACTED,26/03/2021,0000465269,251.97,Revenue,Arnold Clark Finance Ltd (Lease Cars),0
South Ribble Borough Council,http://statistics.data.gov.uk/id/local-authority/30UE,Economic Development,1131,Salaries,VAT,26/03/2021,0000465269,22.13,Revenue,Arnold Clark Finance Ltd (Lease Cars),0
South Ribble Borough Council,http://statistics.data.gov.uk/id/local-authority/30UE,Short Term Debtors,0001,Balance Sheet,- VAT,26/03/2021,0000465269,-22.13,Revenue,Arnold Clark Finance Ltd (Lease Cars),0
South Ribble Borough Council,http://statistics.data.gov.uk/id/local-authority/30UE,Economic Development,1131,Salaries,VIN REDACTED - NAME REDACTED,26/03/2021,0000465270,251.97,Revenue,Arnold Clark Finance Ltd (Lease Cars),0
South Ribble Borough Council,http://statistics.data.gov.uk/id/local-authority/30UE,Economic Development,1131,Salaries,VAT,26/03/2021,0000465270,22.13,Revenue,Arnold Clark Finance Ltd (Lease Cars),0
South Ribble Borough Council,http://statistics.data.gov.uk/id/local-authority/30UE,Short Term Debtors,0001,Balance Sheet,- VAT,26/03/2021,0000465270,-22.13,Revenue,Arnold Clark Finance Ltd (Lease Cars),0
South Ribble Borough Council,http://statistics.data.gov.uk/id/local-authority/30UE,Economic Development,1131,Salaries,VIN REDACTED - NAME REDACTED,26/03/2021,0000465271,251.97,Revenue,Arnold Clark Finance Ltd (Lease Cars),0
South Ribble Borough Council,http://statistics.data.gov.uk/id/local-authority/30UE,Economic Development,1131,Salaries,VAT,26/03/2021,0000465271,22.13,Revenue,Arnold Clark Finance Ltd (Lease Cars),0
South Ribble Borough Council,http://statistics.data.gov.uk/id/local-authority/30UE,Short Term Debtors,0001,Balance Sheet,- VAT,26/03/2021,0000465271,-22.13,Revenue,Arnold Clark Finance Ltd (Lease Cars),0
South Ribble Borough Council,http://statistics.data.gov.uk/id/local-authority/30UE,Economic Development,1131,Salaries,VIN REDACTED - NAME REDACTED,26/03/2021,0000465272,251.97,Revenue,Arnold Clark Finance Ltd (Lease Cars),0
South Ribble Borough Council,http://statistics.data.gov.uk/id/local-authority/30UE,Economic Development,1131,Salaries,VAT,26/03/2021,0000465272,22.13,Revenue,Arnold Clark Finance Ltd (Lease Cars),0
South Ribble Borough Council,http://statistics.data.gov.uk/id/local-authority/30UE,Short Term Debtors,0001,Balance Sheet,- VAT,26/03/2021,0000465272,-22.13,Revenue,Arnold Clark Finance Ltd (Lease Cars),0
South Ribble Borough Council,http://statistics.data.gov.uk/id/local-authority/30UE,Capital,C230,Capital Other Land & Bldgs,"conversion works and create 9 self contained flats as tendered at Pearson House, Station Road, Bamber Bridge, commence 1st June 2020",05/03/2021,0000464969,"24,750.00",Revenue,ASH BARN CONSTRUCTION LTD,0
South Ribble Borough Council,http://statistics.data.gov.uk/id/local-authority/30UE,Economic Development,4851,Miscellaneous Expenses,"ANNUAL HOSTING FEE, AND SSL CERTIFICATE FEE FOR LEYLAND FESTIVAL WEBSITE",12/03/2021,0000464692,398.00,Revenue,ATTAIN GROUP LIMITED,0
South Ribble Borough Council,http://statistics.data.gov.uk/id/local-authority/30UE,Democratic Represent and  Mgnt,4010,Furniture- Equip & Materials,13 x MODESTY PANEL 130cm FOR DESK 160cm - SILVER @ 95 DELIVERY AND HALF DAY FITTING (QUOTATION NUMBAER 2316),10/03/2021,0000464713,"1,532.50",Revenue,AUDITEL,0
South Ribble Borough Council,http://statistics.data.gov.uk/id/local-authority/30UE,Regulatory Services,4010,Furniture- Equip & Materials,IT equipment - per NAME REDACTED,10/03/2021,0000464729,927.86,Revenue,BALLICOM LIMITED,0
South Ribble Borough Council,http://statistics.data.gov.uk/id/local-authority/30UE,Open Spaces,4046,Furniture- Equip & Materials,1 x malus floribunda 8/10 container grown,12/03/2021,0000464872,115.00,Revenue,BANNISTER HALL LANDSCAPE SUPPLIES,0
South Ribble Borough Council,http://statistics.data.gov.uk/id/local-authority/30UE,Capital,C230,Capital Other Land & Bldgs,"1 x sorbus aucuparia `sheerwater seedling` 10/12 bare root, 3 x Quercus robur 7.5 litre, 3 x Sorbus aucuparia 200-250cm, tree stakes, tree ties",12/03/2021,0000464872,171.80,Revenue,BANNISTER HALL LANDSCAPE SUPPLIES,0
South Ribble Borough Council,http://statistics.data.gov.uk/id/local-authority/30UE,Short Term Creditors,0030,Balance Sheet,28th October,26/03/2021,0000461787,"6,718.53",Revenue,Barclays Bank Plc,0
South Ribble Borough Council,http://statistics.data.gov.uk/id/local-authority/30UE,Short Term Creditors,0030,Balance Sheet,28th january 2021,26/03/2021,0000463736,"6,539.28",Revenue,Barclays Bank Plc,0
South Ribble Borough Council,http://statistics.data.gov.uk/id/local-authority/30UE,Short Term Creditors,0030,Balance Sheet,28 november 2020,26/03/2021,0000463737,"7,643.72",Revenue,Barclays Bank Plc,0
South Ribble Borough Council,http://statistics.data.gov.uk/id/local-authority/30UE,Short Term Creditors,0030,Balance Sheet,28 december 2020,26/03/2021,0000463738,"9,989.69",Revenue,Barclays Bank Plc,0
South Ribble Borough Council,http://statistics.data.gov.uk/id/local-authority/30UE,Corporate Management,4851,Miscellaneous Expenses,"RE: WINTER GRITTING SERVICE @ THE CIVIC CENTRE winter season 2020/2021, per NAME REDACTED and weather conditions",05/03/2021,0000461841,705.00,Revenue,BARTON GRANGE GROUP LTD T/A BARTON GRAN,0
South Ribble Borough Council,http://statistics.data.gov.uk/id/local-authority/30UE,Corporate Management,4851,Miscellaneous Expenses,"RE: WINTER GRITTING SERVICE @ THE CIVIC CENTRE winter season 2020/2021, per NAME REDACTED and weather conditions",05/03/2021,0000463980,"1,445.00",Revenue,BARTON GRANGE GROUP LTD T/A BARTON GRAN,0
South Ribble Borough Council,http://statistics.data.gov.uk/id/local-authority/30UE,Corporate Management,4851,Miscellaneous Expenses,"RE: WINTER GRITTING SERVICE @ THE CIVIC CENTRE winter season 2020/2021, per NAME REDACTED and weather conditions",10/03/2021,0000464973,685.00,Revenue,BARTON GRANGE GROUP LTD T/A BARTON GRAN,0
South Ribble Borough Council,http://statistics.data.gov.uk/id/local-authority/30UE,Surplus or Deficit on Trading,2020,Premises Repair & Mtne,Annual Contract 2020/2021 Electrical Testing and Electrical  Installation Test at Leyland Market,05/03/2021,0000464464,416.00,Revenue,BELEC ELECTRICAL LTD,0
South Ribble Borough Council,http://statistics.data.gov.uk/id/local-authority/30UE,Surplus or Deficit on Trading,2020,Premises Repair & Mtne,Extra order to cover the remainder of the sports pavilions to include remedial works  for 2020/2021,03/03/2021,0000464859,260.00,Revenue,BELEC ELECTRICAL LTD,0
South Ribble Borough Council,http://statistics.data.gov.uk/id/local-authority/30UE,Central Support Services,2020,Premises Repair & Mtne,"Provide 24 50 W LED flood lights to spec, additional connections water proof boxes,sundries,Cherry picker / platform hire per NAME REDACTED",12/03/2021,0000465205,"3,203.00",Revenue,BELEC ELECTRICAL LTD,0
South Ribble Borough Council,http://statistics.data.gov.uk/id/local-authority/30UE,Surplus or Deficit on Trading,2020,Premises Repair & Mtne,Annual Contract 2020/2021 Electrical Testing and Electrical  Installation Test at Longton Brickcroft,12/03/2021,0000465220,324.00,Revenue,BELEC ELECTRICAL LTD,0
South Ribble Borough Council,http://statistics.data.gov.uk/id/local-authority/30UE,Surplus or Deficit on Trading,2020,Premises Repair & Mtne,Extra order to cover the remainder of the sports pavilions to include remedial works  for 2020/2021,12/03/2021,0000465221,303.80,Revenue,BELEC ELECTRICAL LTD,0
South Ribble Borough Council,http://statistics.data.gov.uk/id/local-authority/30UE,Surplus or Deficit on Trading,2020,Premises Repair & Mtne,Electrical Testing for Jan - end of March 2021 for the following sites Derby Wing,12/03/2021,0000465222,364.00,Revenue,BELEC ELECTRICAL LTD,0
South Ribble Borough Council,http://statistics.data.gov.uk/id/local-authority/30UE,Surplus or Deficit on Trading,2020,Premises Repair & Mtne,Annual Contract 2020/2021 for Electrical Testing and  Electrical Installation Test Including fan  for Carr Street Community Centre,12/03/2021,0000465227,260.00,Revenue,BELEC ELECTRICAL LTD,0
South Ribble Borough Council,http://statistics.data.gov.uk/id/local-authority/30UE,Corporate Management,4040,Furniture- Equip & Materials,"DATA POINT WORK IN CAB OFFICE as per NAME REDACTED cat 5 e cable,  Product RJ45 teminals, Product labelling and sundries,",12/03/2021,0000465228,412.50,Revenue,BELEC ELECTRICAL LTD,0
South Ribble Borough Council,http://statistics.data.gov.uk/id/local-authority/30UE,Corporate Management,4010,Furniture- Equip & Materials,Installation of electrical supply to reserve fuel tank,26/03/2021,0000465985,492.15,Revenue,BELEC ELECTRICAL LTD,0
South Ribble Borough Council,http://statistics.data.gov.uk/id/local-authority/30UE,Capital,C570,Deferrd Chgs-Improvemnt Grants,DFG WORKS TO COMPLETE ADAPTATION AT ADDRESS REDACTED AS PER PLANS SUPPLIED BY CUSTOMER AND AGREED BY SRBC. ,03/03/2021,0000464581,"8,826.00",Revenue,Bill Cushing,0
South Ribble Borough Council,http://statistics.data.gov.uk/id/local-authority/30UE,Capital,C570,Deferrd Chgs-Improvemnt Grants,DFG WORKS TO COMPLETE ADAPTATION AT ADDRESS REDACTED AS PER PLANS SUPPLIED BY CUSTOMER AND AGREED BY SRBC. ,12/03/2021,0000465229,"8,826.00",Revenue,Bill Cushing,0
South Ribble Borough Council,http://statistics.data.gov.uk/id/local-authority/30UE,Central Support Services,4016,Furniture- Equip & Materials,3 x FAD0220Replacements Pads and Charge Sticks for Defibrillator @ 89.99,10/03/2021,0000465111,269.97,Revenue,Brady Corporation t/a Seton,0
South Ribble Borough Council,http://statistics.data.gov.uk/id/local-authority/30UE,Central Support Services,4016,Furniture- Equip & Materials,Carriage,10/03/2021,0000465111,14.95,Revenue,Brady Corporation t/a Seton,0
South Ribble Borough Council,http://statistics.data.gov.uk/id/local-authority/30UE,Central Support Services,4010,Furniture- Equip & Materials,Please deliver BD150 Dehumidifier to the civic centre,26/03/2021,0000465874,"1,031.01",Revenue,Brandon Hire Limited,0
South Ribble Borough Council,http://statistics.data.gov.uk/id/local-authority/30UE,Central Support Services,4040,Furniture- Equip & Materials,1 track rod end GX19 DZF JFC16217,05/03/2021,0000465070,292.00,Revenue,Bucher Municipal Ltd,0
South Ribble Borough Council,http://statistics.data.gov.uk/id/local-authority/30UE,Corporate Management,4512,Services,National Fraud Initiative 2020/21 fees for SRBC,03/03/2021,0000464715,"2,450.00",Revenue,Cabinet Office SSCLAccounts Receivable,0
South Ribble Borough Council,http://statistics.data.gov.uk/id/local-authority/30UE,Democratic Represent and  Mgnt,1406,Training Expenses,AFTA THOUGHT TRAINING FOR THE DEVELOPMENT AND DELIVERY OF MEMBER EQUILITY AND DIVERSITY TRAINING SESSIONS,17/03/2021,0000465230,"2,750.00",Revenue,Calico Enterprise,0
South Ribble Borough Council,http://statistics.data.gov.uk/id/local-authority/30UE,Central Support Services,4570,Services,Provision of Shared Financial and Procurement Services from 1 April 2019 - 31 March 2020,03/03/2021,0000464069,"40,686.55",Revenue,CHORLEY BOROUGH COUNCIL,0
South Ribble Borough Council,http://statistics.data.gov.uk/id/local-authority/30UE,Homelessness,5311,Contractors Chges,continued placement NAMES REDACTED ADDRESS REDACTED February 2021 x 28 days at 38.63/day 1081.64,03/03/2021,0000464442,463.56,Revenue,CHORLEY BOROUGH COUNCIL,0
South Ribble Borough Council,http://statistics.data.gov.uk/id/local-authority/30UE,Waste Collection,4570,Services,Waste and Recycling Collections at Buckshaw 20/21,12/03/2021,0000464854,"38,471.00",Revenue,CHORLEY BOROUGH COUNCIL,0
South Ribble Borough Council,http://statistics.data.gov.uk/id/local-authority/30UE,Homelessness,5311,Contractors Chges,NAMES REDACTED ADDRESS REDACTED 17  28 Feb 2021 12 days @ 38.63 per day 1-3 March 2021 2 days @ 38.63 per day ,12/03/2021,0000465214,"1,081.64",Revenue,CHORLEY BOROUGH COUNCIL,0
South Ribble Borough Council,http://statistics.data.gov.uk/id/local-authority/30UE,Central Support Services,4570,Services,Qtr3 forecasts for the Shared Services recharges to SRBC for 2020/21,29/03/2021,0000466174,"1,201,142.00",Revenue,CHORLEY BOROUGH COUNCIL,0
South Ribble Borough Council,http://statistics.data.gov.uk/id/local-authority/30UE,Central Support Services,2020,Premises Repair & Mtne,2020 / 2021 fees for the service of the gas suppression system at the Civic Centre - ref SQCMMB050319-A,17/03/2021,0000465260,318.24,Revenue,CHUBB LTD,0
South Ribble Borough Council,http://statistics.data.gov.uk/id/local-authority/30UE,Central Support Services,1403,Training Expenses,NAME REDACTED TO ATTEND `ACCREDITED COUNTER FRAUD SPECIALIST` - 1/3/21 - 21/05/21,10/03/2021,0000464443,"2,160.00",Revenue,CIPFA MEMBERSHIP,0
South Ribble Borough Council,http://statistics.data.gov.uk/id/local-authority/30UE,Central Support Services,4248,Communications & Comuting,"Licence, Support and Maintenance 2021/22",03/03/2021,0000464459,"15,487.38",Revenue,CIVICA UK LTD,0
South Ribble Borough Council,http://statistics.data.gov.uk/id/local-authority/30UE,Homelessness,4730,Grants & Subscriptions,agreed 4 weeks rent in advance ADDRESS REDACTED NAME REDACTED 5.11.2020 88.69/week,24/03/2021,0000465878,354.76,Revenue,COMMUNITY GATEWAY HOUSING ASSOCIATION,0
South Ribble Borough Council,http://statistics.data.gov.uk/id/local-authority/30UE,Short Term Creditors,0030,Balance Sheet,DECEMBER 2020 - CHILDCARE VOUCHERS,26/03/2021,0000461140,"2,003.00",Revenue,COMPUTERSHARE VOUCHER SERVICES,0
South Ribble Borough Council,http://statistics.data.gov.uk/id/local-authority/30UE,Short Term Creditors,0030,Balance Sheet,JANUARY 2021 -  CHILDCARE VOUCHERS,26/03/2021,0000461844,"1,973.00",Revenue,COMPUTERSHARE VOUCHER SERVICES,0
South Ribble Borough Council,http://statistics.data.gov.uk/id/local-authority/30UE,Short Term Creditors,0030,Balance Sheet,FEBRUARY 2021 - CHILDCARE VOUCHERS,26/03/2021,0000463997,"1,517.00",Revenue,COMPUTERSHARE VOUCHER SERVICES,0
South Ribble Borough Council,http://statistics.data.gov.uk/id/local-authority/30UE,Short Term Creditors,0030,Balance Sheet,MARCH 2021 - CHILDCARE VOUCHERS,26/03/2021,0000465096,"1,517.00",Revenue,COMPUTERSHARE VOUCHER SERVICES,0
South Ribble Borough Council,http://statistics.data.gov.uk/id/local-authority/30UE,Local Tax Collection,4291,Communications & Comuting,Postage October to March 2021,03/03/2021,0000464706,327.02,Revenue,CRITIQOM,0
South Ribble Borough Council,http://statistics.data.gov.uk/id/local-authority/30UE,Local Tax Collection,4130,Printing- Stat & Office Expens,End of year stationery for 21/22,05/03/2021,0000464939,"3,598.00",Revenue,CRITIQOM,0
South Ribble Borough Council,http://statistics.data.gov.uk/id/local-authority/30UE,Local Tax Collection,4291,Communications & Comuting,Postage October to March 2021,05/03/2021,0000464957,291.05,Revenue,CRITIQOM,0
South Ribble Borough Council,http://statistics.data.gov.uk/id/local-authority/30UE,Local Tax Collection,4291,Communications & Comuting,Postage October to March 2021,17/03/2021,0000465281,339.00,Revenue,CRITIQOM,0
South Ribble Borough Council,http://statistics.data.gov.uk/id/local-authority/30UE,Central Support Services,4821,Miscellaneous Expenses,PROFESSIONAL SERVICES IN RELATION TO AN EMPLOYMENT TRIBUNAL MATTER.,12/03/2021,0000465212,"1,599.20",Revenue,DAC BEACHCROFT LLP,0
South Ribble Borough Council,http://statistics.data.gov.uk/id/local-authority/30UE,Central Support Services,4821,Miscellaneous Expenses,PROFESSIONAL SERVICES IN RELATION TO AN EMPLOYMENT TRIBUNAL MATTER.,12/03/2021,0000465232,"1,500.00",Revenue,DAC BEACHCROFT LLP,0
South Ribble Borough Council,http://statistics.data.gov.uk/id/local-authority/30UE,Economic Development,4242,Communications & Comuting,Subscription to Citizenspace software for Consultations  12 months - per NAME REDACTED,10/03/2021,0000465189,"14,995.00",Revenue,Delib Ltd,0
South Ribble Borough Council,http://statistics.data.gov.uk/id/local-authority/30UE,Central Support Services,4040,Furniture- Equip & Materials,1 x valve 4 x bolts VO65KPX JFC16242,10/03/2021,0000464979,"1,044.24",Revenue,DENNIS EAGLE LTD,0
South Ribble Borough Council,http://statistics.data.gov.uk/id/local-authority/30UE,Central Support Services,4040,Furniture- Equip & Materials,Spec Repair VO65 KPX JFC15475,26/03/2021,0000466002,349.40,Revenue,DENNIS EAGLE LTD,0
South Ribble Borough Council,http://statistics.data.gov.uk/id/local-authority/30UE,Capital Grants & Contributions,0030,Balance Sheet,"Land Release Fund � Return of Funding Award from the  Ministry of Housing, Communities and Local Government",03/03/2021,0000464019,"362,000.00",Revenue,Department for Communities and Local Government,0
South Ribble Borough Council,http://statistics.data.gov.uk/id/local-authority/30UE,Open Spaces,4010,Furniture- Equip & Materials,TSCUS102/35M Cousin Atrax 11.6mm Rope Green/Orange 35M + 1 Eye,05/03/2021,0000464611,115.00,Revenue,DICK LEIGH,0
South Ribble Borough Council,http://statistics.data.gov.uk/id/local-authority/30UE,Open Spaces,4010,Furniture- Equip & Materials,TSPFA001 - Pfanner Protos Arborist Integral Hemet,05/03/2021,0000464611,398.00,Revenue,DICK LEIGH,0
South Ribble Borough Council,http://statistics.data.gov.uk/id/local-authority/30UE,Open Spaces,4010,Furniture- Equip & Materials,TSAT4070S - Breatheflex Pro Type C Trouser S,05/03/2021,0000464611,250.75,Revenue,DICK LEIGH,0
South Ribble Borough Council,http://statistics.data.gov.uk/id/local-authority/30UE,Open Spaces,4010,Furniture- Equip & Materials,HV596935811 - Throw Weight - 14oz,05/03/2021,0000464611,59.96,Revenue,DICK LEIGH,0
South Ribble Borough Council,http://statistics.data.gov.uk/id/local-authority/30UE,Open Spaces,4010,Furniture- Equip & Materials,TSKF1063 - Marlow EXcel Throw Line - 2mm x 50 mtr,05/03/2021,0000464611,36.57,Revenue,DICK LEIGH,0
South Ribble Borough Council,http://statistics.data.gov.uk/id/local-authority/30UE,Open Spaces,4010,Furniture- Equip & Materials,TSAT20209 - Arbortec Cut Resistant G1 Extended Cuff Size 9,05/03/2021,0000464611,20.50,Revenue,DICK LEIGH,0
South Ribble Borough Council,http://statistics.data.gov.uk/id/local-authority/30UE,Economic Development,4848,Miscellaneous Expenses,"300 PRINTED LANYARDS, 3 X 100-PACK OF BADGE HOLDERS, 1 X CARRIAGE CHARGE, AS PER QUOTATION NUMBER QY-225262-1",12/03/2021,0000465240,395.95,Revenue,DIGITAL ID LTD,0
South Ribble Borough Council,http://statistics.data.gov.uk/id/local-authority/30UE,Central Support Services,4570,Services,"1x windscreen, VO65 KPX, JFC16308",19/03/2021,0000465320,270.00,Revenue,DIRECT VEHICLE GLASS,0
South Ribble Borough Council,http://statistics.data.gov.uk/id/local-authority/30UE,Central Support Services,2020,Premises Repair & Mtne,"1.Engineer to attend to site, supply and fit X3 Push Buttons as current Push Buttons, have been damaged. Setup, test and return to service.",26/03/2021,0000466032,800.00,Revenue,E A Foulds Limited,0
South Ribble Borough Council,http://statistics.data.gov.uk/id/local-authority/30UE,Central Support Services,2020,Premises Repair & Mtne,"2.Engineer to attend to site, supply and fit replacement UPS Unit as current one is faulty. Setup, test and return to service.",26/03/2021,0000466032,475.00,Revenue,E A Foulds Limited,0
South Ribble Borough Council,http://statistics.data.gov.uk/id/local-authority/30UE,Central Support Services,4260,Communications & Comuting,01 mar 2021,10/03/2021,0000465186,"4,238.88",Revenue,EE Ltd,0
South Ribble Borough Council,http://statistics.data.gov.uk/id/local-authority/30UE,Community Development,4851,Miscellaneous Expenses,"To supply 500 packs of tomato seeds, with 35 in each pack, at a cost of 1.75 per pack, for South Ribble in Bloom 2021.",03/03/2021,0000464721,738.00,Revenue,EMBLEYS NURSERIES LIMITED,0
South Ribble Borough Council,http://statistics.data.gov.uk/id/local-authority/30UE,Central Support Services,4040,Furniture- Equip & Materials,"1 front wing, 1 headlight, 1 front quarter bumper PN58 WKH JFC15987",03/03/2021,0000464866,343.29,Revenue,EVANSHALSHAW (PRESTON) LTD,0
South Ribble Borough Council,http://statistics.data.gov.uk/id/local-authority/30UE,Central Support Services,4040,Furniture- Equip & Materials,1 DPF MV12 SWN JFC16071,24/03/2021,0000465971,804.40,Revenue,EVANSHALSHAW (PRESTON) LTD,0
South Ribble Borough Council,http://statistics.data.gov.uk/id/local-authority/30UE,Waste Collection,4570,Services,Additional Clinical Waste Collections February 2021,12/03/2021,0000465128,544.18,Revenue,FCC Environment Services (UK) Ltd,0
South Ribble Borough Council,http://statistics.data.gov.uk/id/local-authority/30UE,Short Term Creditors,0030,Balance Sheet,retention,12/03/2021,0000465128,-27.21,Revenue,FCC Environment Services (UK) Ltd,0
South Ribble Borough Council,http://statistics.data.gov.uk/id/local-authority/30UE,Waste Collection,4570,Services,Additional WEEE Collections February 2021,12/03/2021,0000465129,676.06,Revenue,FCC Environment Services (UK) Ltd,0
South Ribble Borough Council,http://statistics.data.gov.uk/id/local-authority/30UE,Waste Collection,4570,Services,Additional Bulky Waste Collections February 2021,12/03/2021,0000465129,860.20,Revenue,FCC Environment Services (UK) Ltd,0
South Ribble Borough Council,http://statistics.data.gov.uk/id/local-authority/30UE,Short Term Creditors,0030,Balance Sheet,retention,12/03/2021,0000465129,-76.81,Revenue,FCC Environment Services (UK) Ltd,0
South Ribble Borough Council,http://statistics.data.gov.uk/id/local-authority/30UE,Waste Collection,4570,Services,Residual Waste Collections February 2021,12/03/2021,0000465130,"42,334.11",Revenue,FCC Environment Services (UK) Ltd,0
South Ribble Borough Council,http://statistics.data.gov.uk/id/local-authority/30UE,Recycling,4570,Services,Dry recyclable non terraced Collections February 2021,12/03/2021,0000465130,"43,338.51",Revenue,FCC Environment Services (UK) Ltd,0
South Ribble Borough Council,http://statistics.data.gov.uk/id/local-authority/30UE,Recycling,4570,Services,Dry recyclable terraced Collections February 2021,12/03/2021,0000465130,"2,062.77",Revenue,FCC Environment Services (UK) Ltd,0
South Ribble Borough Council,http://statistics.data.gov.uk/id/local-authority/30UE,Recycling,4570,Services,Organic waste non terraced Collections February 2021,12/03/2021,0000465130,"30,007.50",Revenue,FCC Environment Services (UK) Ltd,0
South Ribble Borough Council,http://statistics.data.gov.uk/id/local-authority/30UE,Trade Waste,4570,Services,Schedule 2 properties February 2021,12/03/2021,0000465130,"1,725.61",Revenue,FCC Environment Services (UK) Ltd,0
South Ribble Borough Council,http://statistics.data.gov.uk/id/local-authority/30UE,Trade Waste,4570,Services,Commercial Waste Collections February 2021,12/03/2021,0000465130,"6,719.34",Revenue,FCC Environment Services (UK) Ltd,0
South Ribble Borough Council,http://statistics.data.gov.uk/id/local-authority/30UE,Waste Collection,4570,Services,Bulky Waste Collections February 2021,12/03/2021,0000465130,932.46,Revenue,FCC Environment Services (UK) Ltd,0
South Ribble Borough Council,http://statistics.data.gov.uk/id/local-authority/30UE,Waste Collection,4570,Services,WEEE Collections February 2021,12/03/2021,0000465130,350.25,Revenue,FCC Environment Services (UK) Ltd,0
South Ribble Borough Council,http://statistics.data.gov.uk/id/local-authority/30UE,Waste Collection,4570,Services,Clinical Waste Collections February 2021,12/03/2021,0000465130,596.68,Revenue,FCC Environment Services (UK) Ltd,0
South Ribble Borough Council,http://statistics.data.gov.uk/id/local-authority/30UE,Waste Collection,4570,Services,Replacement Bins  February 2021,12/03/2021,0000465130,"5,000.00",Revenue,FCC Environment Services (UK) Ltd,0
South Ribble Borough Council,http://statistics.data.gov.uk/id/local-authority/30UE,Waste Collection,4570,Services,Additional Properties  February 2021,12/03/2021,0000465130,"3,718.40",Revenue,FCC Environment Services (UK) Ltd,0
South Ribble Borough Council,http://statistics.data.gov.uk/id/local-authority/30UE,Short Term Creditors,0030,Balance Sheet,retention,12/03/2021,0000465130,"-2,818.84",Revenue,FCC Environment Services (UK) Ltd,0
South Ribble Borough Council,http://statistics.data.gov.uk/id/local-authority/30UE,Short Term Creditors,0030,Balance Sheet,retention,12/03/2021,0000465130,"-3,770.44",Revenue,FCC Environment Services (UK) Ltd,0
South Ribble Borough Council,http://statistics.data.gov.uk/id/local-authority/30UE,Recycling,4570,Services,Charge for manpower to delivery recycling stickers - SRBC Recycling Campaign,26/03/2021,0000466022,"1,500.00",Revenue,FCC Environment Services (UK) Ltd,0
South Ribble Borough Council,http://statistics.data.gov.uk/id/local-authority/30UE,Recycling,4570,Services,Charge for manpower to deliver Garden Waste Reminder stickers,26/03/2021,0000466022,"1,000.00",Revenue,FCC Environment Services (UK) Ltd,0
South Ribble Borough Council,http://statistics.data.gov.uk/id/local-authority/30UE,Recreation & Sport,4541,Services,Description: Leisure Management contract consultancy work December 2020 fees as per proposal. (Additional work) As per NAME REDACTED,17/03/2021,0000465828,"1,000.00",Revenue,FMG Consulting Ltd,0
South Ribble Borough Council,http://statistics.data.gov.uk/id/local-authority/30UE,Economic Development,4510,Services,"Architectural services for Towngate Credit Union Office, Leyland plus additional charge for plans for the proposed internal plan arrangement",05/03/2021,0000464625,692.00,Revenue,FuZED Architecture and Design Ltd,0
South Ribble Borough Council,http://statistics.data.gov.uk/id/local-authority/30UE,Central Support Services,4821,Miscellaneous Expenses,"PROFESSIONAL SERVICES WITH REGARD TO WAINHOMES NORTH WEST LTD - LAND REAR OF OAKDENE, CHAIN HOUSE LANE",10/03/2021,0000465084,"3,150.00",Revenue,Giles Cannock,0
South Ribble Borough Council,http://statistics.data.gov.uk/id/local-authority/30UE,Central Support Services,4821,Miscellaneous Expenses,"PROFESSIONAL SERVICES WITH REGARD TO WAINHOMES NORTH WEST LTD - LAND REAR OF OAKDENE, CHAIN HOUSE LANE",17/03/2021,0000465210,"5,075.00",Revenue,Giles Cannock,0
South Ribble Borough Council,http://statistics.data.gov.uk/id/local-authority/30UE,Central Support Services,2020,Premises Repair & Mtne,Moss Side Depot � investigate a leak from the rear of one of the toilets and replace an expansion vessel.,10/03/2021,0000465074,288.13,Revenue,GOS Heating Ltd,0
South Ribble Borough Council,http://statistics.data.gov.uk/id/local-authority/30UE,Surplus or Deficit on Trading,2020,Premises Repair & Mtne,"Please supply and install Toilet and sink combi unit, alter and adapt the waste pipe to suite and install a new hot water feed to the tap. ",10/03/2021,0000465075,"1,899.42",Revenue,GOS Heating Ltd,0
South Ribble Borough Council,http://statistics.data.gov.uk/id/local-authority/30UE,Capital,C230,Capital Other Land & Bldgs,"Please provide services to Worden Hall PM and QS support RIBA stage 4-7 � As per contract terms, Fee proposal and draw down schedule.",10/03/2021,0000465097,"6,479.17",Revenue,Gosling Construction Services Limited,0
South Ribble Borough Council,http://statistics.data.gov.uk/id/local-authority/30UE,Capital,C230,Capital Other Land & Bldgs,"McKenzie Arms Site, 319 Station Road,  PR5 6EE Professional Services � Procurement, Project Management and Quantity Surveying Services",10/03/2021,0000465099,"3,700.00",Revenue,Gosling Construction Services Limited,0
South Ribble Borough Council,http://statistics.data.gov.uk/id/local-authority/30UE,Capital,C230,Capital Other Land & Bldgs,"Please provide services to Worden Hall PM and QS support RIBA stage 4-7 � As per contract terms, Fee proposal and draw down schedule.",10/03/2021,0000465131,"3,979.17",Revenue,Gosling Construction Services Limited,0
South Ribble Borough Council,http://statistics.data.gov.uk/id/local-authority/30UE,Capital,C230,Capital Other Land & Bldgs,"Professional Services, development of a procurement strategy for McKenzie Arms, 319 Station Road, PR5 6EE in accordance with fee proposal",10/03/2021,0000465132,400.00,Revenue,Gosling Construction Services Limited,0
South Ribble Borough Council,http://statistics.data.gov.uk/id/local-authority/30UE,Capital,C230,Capital Other Land & Bldgs,"Worden Hall Refurbishment, Procurement Strategy Fee Proposal",10/03/2021,0000465133,600.00,Revenue,Gosling Construction Services Limited,0
South Ribble Borough Council,http://statistics.data.gov.uk/id/local-authority/30UE,Capital,C230,Capital Other Land & Bldgs,"Please provide services to Worden Hall PM and QS support RIBA stage 4-7 � As per contract terms, Fee proposal and draw down schedule ",10/03/2021,0000465140,"3,700.00",Revenue,Gosling Construction Services Limited,0
South Ribble Borough Council,http://statistics.data.gov.uk/id/local-authority/30UE,Surplus or Deficit on Trading,2020,Premises Repair & Mtne,"To undertake a structural survey of the industrial units at Boxer Place, Leyland as agreed with the facilities maintenance officer",26/03/2021,0000466179,"1,125.00",Revenue,GRAHAM SCHOFIELD ASSOCIATES,0
South Ribble Borough Council,http://statistics.data.gov.uk/id/local-authority/30UE,Corporate Management,4512,Services,South Ribble Borough Council - Main Audit Fee 2020-21,10/03/2021,0000465076,"8,455.25",Revenue,Grant Thornton UK LLP,0
South Ribble Borough Council,http://statistics.data.gov.uk/id/local-authority/30UE,Short Term Creditors,0001,Balance Sheet,,26/03/2021,0000466019,465.85,Revenue,GVAG LTD,0
South Ribble Borough Council,http://statistics.data.gov.uk/id/local-authority/30UE,Central Support Services,4040,Furniture- Equip & Materials,4x EKBS087 Volvo/Dennis Disc Pad for Bin 539,03/03/2021,0000464943,340.00,Revenue,H & J SERVICES LTD,0
South Ribble Borough Council,http://statistics.data.gov.uk/id/local-authority/30UE,Central Support Services,4040,Furniture- Equip & Materials,Disc Pads EKBS087 BIN 539,10/03/2021,0000465139,340.00,Revenue,H & J SERVICES LTD,0
South Ribble Borough Council,http://statistics.data.gov.uk/id/local-authority/30UE,Central Support Services,4040,Furniture- Equip & Materials,DAF Disc Pads 0813 BIN541,10/03/2021,0000465139,289.00,Revenue,H & J SERVICES LTD,0
South Ribble Borough Council,http://statistics.data.gov.uk/id/local-authority/30UE,Central Support Services,4040,Furniture- Equip & Materials,EKBS087 Volvo/Dennis Disc Pad Set BIN539,19/03/2021,0000465822,170.00,Revenue,H & J SERVICES LTD,0
South Ribble Borough Council,http://statistics.data.gov.uk/id/local-authority/30UE,Central Support Services,4040,Furniture- Equip & Materials,0813 DAF Brake Pad Kit BIN541,19/03/2021,0000465822,289.00,Revenue,H & J SERVICES LTD,0
South Ribble Borough Council,http://statistics.data.gov.uk/id/local-authority/30UE,Central Support Services,4040,Furniture- Equip & Materials,4 x brake pads kit - BIN539,24/03/2021,0000465977,340.00,Revenue,H & J SERVICES LTD,0
South Ribble Borough Council,http://statistics.data.gov.uk/id/local-authority/30UE,Central Support Services,4040,Furniture- Equip & Materials,2 x WP1577 Merc Econic Disc Pad  @ 125.00 BIN538,26/03/2021,0000466046,250.00,Revenue,H & J SERVICES LTD,0
South Ribble Borough Council,http://statistics.data.gov.uk/id/local-authority/30UE,Central Support Services,1402,Training Expenses,TRAINING SESSIONS ON THE HFX SYSTEM,10/03/2021,0000464976,255.00,Revenue,HFX LTD,0
South Ribble Borough Council,http://statistics.data.gov.uk/id/local-authority/30UE,Short Term Creditors,0140,Balance Sheet,,17/03/2021,0000464565,353.29,Revenue,HM REVENUE & CUSTOMS,0
South Ribble Borough Council,http://statistics.data.gov.uk/id/local-authority/30UE,Capital,C230,Capital Other Land & Bldgs,purchase of land at croston road,26/03/2021,0000462334,"29,760.00",Revenue,HOMES AND COMMUNITIES AGENCY (HCA),0
South Ribble Borough Council,http://statistics.data.gov.uk/id/local-authority/30UE,Capital Receipts Reserve,0140,Balance Sheet,Clawback owed to Homes & Community Agency in relation to Test Track site,26/03/2021,0000464352,"52,000.00",Revenue,HOMES AND COMMUNITIES AGENCY (HCA),0
South Ribble Borough Council,http://statistics.data.gov.uk/id/local-authority/30UE,Short Term Debtors,0030,Balance Sheet,Leyland Test Track deed of release,26/03/2021,0000466013,"58,294.00",Revenue,HOMES AND COMMUNITIES AGENCY (HCA),0
South Ribble Borough Council,http://statistics.data.gov.uk/id/local-authority/30UE,Capital,C570,Deferrd Chgs-Improvemnt Grants,GRANT,26/03/2021,0000465278,"50,000.00",Revenue,HOOLE VILLAGE MEMORIAL HALL COMMITTEE,0
South Ribble Borough Council,http://statistics.data.gov.uk/id/local-authority/30UE,Open Spaces,4040,Furniture- Equip & Materials,CARDIFF C Lectern A3 graphics panel,17/03/2021,0000465785,416.67,Revenue,Hornbeck Ltd T/A Landmark,0
South Ribble Borough Council,http://statistics.data.gov.uk/id/local-authority/30UE,Open Spaces,4040,Furniture- Equip & Materials,Carriage,17/03/2021,0000465785,55.00,Revenue,Hornbeck Ltd T/A Landmark,0
South Ribble Borough Council,http://statistics.data.gov.uk/id/local-authority/30UE,Open Spaces,4570,Services,Work to  manufacture and delivery of four interpretation lecterns as per NAME REDACTED request,24/03/2021,0000465790,"2,165.46",Revenue,Hornbeck Ltd T/A Landmark,0
South Ribble Borough Council,http://statistics.data.gov.uk/id/local-authority/30UE,Capital,C230,Capital Other Land & Bldgs,"Post Contract Variations, Site Meetings, Financial Statements (based on 7 months)",19/03/2021,0000465879,"1,450.40",Revenue,Ian Brew QS Consultancy,0
South Ribble Borough Council,http://statistics.data.gov.uk/id/local-authority/30UE,Development Control,4821,Miscellaneous Expenses,"To act as expert witness at Planning Appeal, outline application development of 100 homes, Chain House Lane, Whitestake (07/2018/9316/OUT)",24/03/2021,0000464716,"6,626.50",Revenue,Iceni Projects Limited,0
South Ribble Borough Council,http://statistics.data.gov.uk/id/local-authority/30UE,Regulatory Services,4570,Services,HMO/Housing per Quote 141220 - per NAME REDACTED,10/03/2021,0000464690,"4,775.00",Revenue,IDOX PLC,0
South Ribble Borough Council,http://statistics.data.gov.uk/id/local-authority/30UE,Local Tax Collection,4510,Services,Analyse Local - ADDRESS REDACTED.,26/03/2021,0000466015,395.00,Revenue,Inform CPI Ltd,0
South Ribble Borough Council,http://statistics.data.gov.uk/id/local-authority/30UE,Central Support Services,4248,Communications & Comuting,Annual InPhase maintenance Hosted Server service,24/03/2021,0000465924,"2,000.00",Revenue,InPhase Limited,0
South Ribble Borough Council,http://statistics.data.gov.uk/id/local-authority/30UE,Central Support Services,4541,Services,Public Sector Decarbonisation Scheme -per NAME REDACTED.,19/03/2021,0000465798,750.00,Revenue,INSPIRED ENERGY SOLUTIONS LIMITED,0
South Ribble Borough Council,http://statistics.data.gov.uk/id/local-authority/30UE,Central Support Services,4520,Services,Council Tax Master Class June 2021,24/03/2021,0000465871,300.00,Revenue,INST OF REVENUES RATING & VALUATION,0
South Ribble Borough Council,http://statistics.data.gov.uk/id/local-authority/30UE,Capital,C230,Capital Other Land & Bldgs,"Please provide trees, storage, supply and delivery as per NAME REDACTED request",05/03/2021,0000464356,"2,074.96",Revenue,J A JONES & SONS,0
South Ribble Borough Council,http://statistics.data.gov.uk/id/local-authority/30UE,Capital,C230,Capital Other Land & Bldgs,Crategus Monogyna Hawthorn 60/90,12/03/2021,0000465136,140.00,Revenue,J A JONES & SONS,0
South Ribble Borough Council,http://statistics.data.gov.uk/id/local-authority/30UE,Capital,C230,Capital Other Land & Bldgs,Prunus Spinosa Blackthorn 60/90,12/03/2021,0000465136,100.00,Revenue,J A JONES & SONS,0
South Ribble Borough Council,http://statistics.data.gov.uk/id/local-authority/30UE,Capital,C230,Capital Other Land & Bldgs,Viburnum Opulus Guelder Rose 90/120,12/03/2021,0000465136,11.50,Revenue,J A JONES & SONS,0
South Ribble Borough Council,http://statistics.data.gov.uk/id/local-authority/30UE,Capital,C230,Capital Other Land & Bldgs,Prunus Padas Bird Cherry 60/90,12/03/2021,0000465136,4.40,Revenue,J A JONES & SONS,0
South Ribble Borough Council,http://statistics.data.gov.uk/id/local-authority/30UE,Capital,C230,Capital Other Land & Bldgs,Quercus Robur Oak 90/120,12/03/2021,0000465136,4.40,Revenue,J A JONES & SONS,0
South Ribble Borough Council,http://statistics.data.gov.uk/id/local-authority/30UE,Capital,C230,Capital Other Land & Bldgs,Fagus Sylvatica Beech 100/120,12/03/2021,0000465136,2.46,Revenue,J A JONES & SONS,0
South Ribble Borough Council,http://statistics.data.gov.uk/id/local-authority/30UE,Capital,C230,Capital Other Land & Bldgs,Betula Pendula Silver Birch 90/120,12/03/2021,0000465136,2.32,Revenue,J A JONES & SONS,0
South Ribble Borough Council,http://statistics.data.gov.uk/id/local-authority/30UE,Capital,C230,Capital Other Land & Bldgs,"Please provide trees, storage, supply and delivery as per NAME REDACTED request",10/03/2021,0000465160,"3,782.53",Revenue,J A JONES & SONS,0
South Ribble Borough Council,http://statistics.data.gov.uk/id/local-authority/30UE,Capital,C230,Capital Other Land & Bldgs,Work � supply of trees as per NAME REDACTED instruction Amount - 850.75,10/03/2021,0000465161,495.00,Revenue,J A JONES & SONS,0
South Ribble Borough Council,http://statistics.data.gov.uk/id/local-authority/30UE,Capital,C230,Capital Other Land & Bldgs,"Please provide trees, storage, supply and delivery as per NAME REDACTED request",24/03/2021,0000465936,"3,212.40",Revenue,J A JONES & SONS,0
South Ribble Borough Council,http://statistics.data.gov.uk/id/local-authority/30UE,Surplus or Deficit on Trading,2020,Premises Repair & Mtne,"8 radiator valves need replacing at Carr Street community centre, as per NAME REDACTED 260.00",10/03/2021,0000465077,260.00,Revenue,J Whittle plumbing & heating,0
South Ribble Borough Council,http://statistics.data.gov.uk/id/local-authority/30UE,Homelessness,4730,Grants & Subscriptions,NAME REDACTED payment of rent for ADDRESS REDACTED March 2021 4 weeks rent at 106.15/w,19/03/2021,0000465163,424.60,Revenue,NAME REDACTED,0
South Ribble Borough Council,http://statistics.data.gov.uk/id/local-authority/30UE,Development Control,4841,Miscellaneous Expenses,Press notices in the Lancashire Evening Post for Planning Applications July 2020 to March 2021,24/03/2021,0000464454,810.00,Revenue,JPI Media - JOHNSTON PUBLISHING (NORTH WEST),0
South Ribble Borough Council,http://statistics.data.gov.uk/id/local-authority/30UE,Development Control,4841,Miscellaneous Expenses,Press notices in the Lancashire Evening Post for Planning Applications July 2020 to March 2021,24/03/2021,0000464607,891.00,Revenue,JPI Media - JOHNSTON PUBLISHING (NORTH WEST),0
South Ribble Borough Council,http://statistics.data.gov.uk/id/local-authority/30UE,Development Control,4841,Miscellaneous Expenses,Press notices in the Lancashire Evening Post for Planning Applications July 2020 to March 2021,24/03/2021,0000464712,810.00,Revenue,JPI Media - JOHNSTON PUBLISHING (NORTH WEST),0
South Ribble Borough Council,http://statistics.data.gov.uk/id/local-authority/30UE,Development Control,4841,Miscellaneous Expenses,Press notices in the Lancashire Evening Post for Planning Applications July 2020 to March 2021,24/03/2021,0000464727,810.00,Revenue,JPI Media - JOHNSTON PUBLISHING (NORTH WEST),0
South Ribble Borough Council,http://statistics.data.gov.uk/id/local-authority/30UE,Development Control,4841,Miscellaneous Expenses,Press notices in the Lancashire Evening Post for Planning Applications July 2020 to March 2021,24/03/2021,0000464880,"1,296.00",Revenue,JPI Media - JOHNSTON PUBLISHING (NORTH WEST),0
South Ribble Borough Council,http://statistics.data.gov.uk/id/local-authority/30UE,Development Control,4841,Miscellaneous Expenses,Press notices in the Lancashire Evening Post for Planning Applications July 2020 to March 2021,26/03/2021,0000466003,729.00,Revenue,JPI Media - JOHNSTON PUBLISHING (NORTH WEST),0
South Ribble Borough Council,http://statistics.data.gov.uk/id/local-authority/30UE,Local Tax Collection,4841,Miscellaneous Expenses,Advertisement - Council Tax Charges 2021/22,26/03/2021,0000466018,"1,350.00",Revenue,JPI Media - JOHNSTON PUBLISHING (NORTH WEST),0
South Ribble Borough Council,http://statistics.data.gov.uk/id/local-authority/30UE,Open Spaces,4657,Expenses,"Green Flag Award Applications - Worden Park, Hurst Grange Park and Longton Brickcroft",19/03/2021,0000465833,"1,037.00",Revenue,KEEP BRITAIN TIDY,0
South Ribble Borough Council,http://statistics.data.gov.uk/id/local-authority/30UE,Homelessness,4730,Grants & Subscriptions,Q4 floating support,19/03/2021,0000465796,"7,500.00",Revenue,KEY UNLOCKING FUTURES LTD,0
South Ribble Borough Council,http://statistics.data.gov.uk/id/local-authority/30UE,Community Development,4861,Miscellaneous Expenses,funds for domestic products,24/03/2021,0000465973,500.00,Revenue,KEY UNLOCKING FUTURES LTD,0
South Ribble Borough Council,http://statistics.data.gov.uk/id/local-authority/30UE,Waste Collection,5112,Waste Disposal,December 2020 -  Incineration of Clinical Waste,03/03/2021,0000464900,774.72,Revenue,LANCASHIRE TEACHING FT,0
South Ribble Borough Council,http://statistics.data.gov.uk/id/local-authority/30UE,Corporate Management,4510,Services,CAR LEASE SALARY SACRIFICE-  REFERENCE:  RFP36327,10/03/2021,0000464613,756.00,Revenue,LANCS COUNTY COUNCIL,0
South Ribble Borough Council,http://statistics.data.gov.uk/id/local-authority/30UE,Capital,C230,Capital Other Land & Bldgs,"LCC (Highways and Transport) Hoarding Licence Fee for the erection of hoarding at McKenzie Arms development, Bamber Bridge",10/03/2021,0000464691,"2,100.00",Revenue,LANCS COUNTY COUNCIL,0
South Ribble Borough Council,http://statistics.data.gov.uk/id/local-authority/30UE,Capital,C570,Deferrd Chgs-Improvemnt Grants,DFG WORKS SUPPLY AND INSTALL STAIRLIFT AT ADDRESS REDACTED AS PER QUOTE SUPPLIED OF 3790.00 GRANT COST 3790.00,03/03/2021,0000464849,"3,790.00",Revenue,LANCS COUNTY COUNCIL,0
South Ribble Borough Council,http://statistics.data.gov.uk/id/local-authority/30UE,Capital,C570,Deferrd Chgs-Improvemnt Grants,"DFG WORK TO SUPPLY AND INSTALL HOIST EQUIPMENT AT ADDRESS REDACTED AS PER QUOTE SUPPLIED OF 2518.00
",10/03/2021,0000465108,"2,518.00",Revenue,LANCS COUNTY COUNCIL,0
South Ribble Borough Council,http://statistics.data.gov.uk/id/local-authority/30UE,Capital,C570,Deferrd Chgs-Improvemnt Grants,"DFG WORKS TO SUPPLY AND INSTALL DOOR AND WALL PADDING AT ADDRESS REDACTED, INSTRUCTIONS BY OCC THERAPIST",10/03/2021,0000465109,"4,290.00",Revenue,LANCS COUNTY COUNCIL,0
South Ribble Borough Council,http://statistics.data.gov.uk/id/local-authority/30UE,Capital,C570,Deferrd Chgs-Improvemnt Grants,DFG WORK TO SUPPLY AND INSTALL STARILIFT AT ADDRESS REDACTED AS PER QUOTE SUPPLIED OF 3481.00 TOTAL 3481.00,17/03/2021,0000465800,"3,481.00",Revenue,LANCS COUNTY COUNCIL,0
South Ribble Borough Council,http://statistics.data.gov.uk/id/local-authority/30UE,Local Land Charges,4530,Services,LAND CHARGES - FEBRUARY 2021,24/03/2021,0000465826,818.50,Revenue,LANCS COUNTY COUNCIL,0
South Ribble Borough Council,http://statistics.data.gov.uk/id/local-authority/30UE,Capital,C570,Deferrd Chgs-Improvemnt Grants,DFG WORKS TO SUPPLY AND INSTALL A STAIRLIFT AT ADDRESS REDACTED AS PER QUOTE OF 2930.00 Total Cost 2930.00,24/03/2021,0000465937,"2,930.00",Revenue,LANCS COUNTY COUNCIL,0
South Ribble Borough Council,http://statistics.data.gov.uk/id/local-authority/30UE,Local Land Charges,4530,Services,LAND CHARGES - SEPTEMBER 2020,24/03/2021,0000465938,"1,190.50",Revenue,LANCS COUNTY COUNCIL,0
South Ribble Borough Council,http://statistics.data.gov.uk/id/local-authority/30UE,Central Support Services,4040,Furniture- Equip & Materials,1  x service kit JFC16222 YD19AYK,05/03/2021,0000464857,392.03,Revenue,LANCS DAF,0
South Ribble Borough Council,http://statistics.data.gov.uk/id/local-authority/30UE,Central Support Services,4040,Furniture- Equip & Materials,1 service kit YD19 ATZ JFC16263,05/03/2021,0000464924,318.05,Revenue,LANCS DAF,0
South Ribble Borough Council,http://statistics.data.gov.uk/id/local-authority/30UE,Open Spaces,4510,Services,Work: Volunteer management at Preston Junction Local Nature Reserve Amount: 6000 as per NAME REDACTED,05/03/2021,0000464972,"1,250.00",Revenue,LANCS WILDLIFE TRUST,0
South Ribble Borough Council,http://statistics.data.gov.uk/id/local-authority/30UE,Capital,C230,Capital Other Land & Bldgs,REPLACEMENT OF LOG ENDINGS AT WORDEN AND FARINGTON PARK PLAYGROUNDS,26/03/2021,0000466043,"1,907.79",Revenue,LANDSCAPE ENGINEERING LIMITED,0
South Ribble Borough Council,http://statistics.data.gov.uk/id/local-authority/30UE,Central Support Services,2020,Premises Repair & Mtne,Annual Maintenance for the Jetvac of Moss Side Depot Drains to be scheduled for 3/8/20 & 1/2/21 as agreed with NAME REDACTED and quote,05/03/2021,0000464968,"1,782.00",Revenue,LANES GROUP PLC,0
South Ribble Borough Council,http://statistics.data.gov.uk/id/local-authority/30UE,Corporate Management,4510,Services,NLRF - Monitoring & Evaluation Grant Your invoice number 7688,03/03/2021,0000464862,"1,542.00",Revenue,Leisure-Net Solutions Ltd,0
South Ribble Borough Council,http://statistics.data.gov.uk/id/local-authority/30UE,Central Support Services,4040,Furniture- Equip & Materials,3 X Bin Clamp Air Ram BIN G046 @ 98.00 1 x Bin Clamp Air Ram (complete) G046 @ 147.00,24/03/2021,0000465917,441.00,Revenue,LIJ Fluid Power Ltd,0
South Ribble Borough Council,http://statistics.data.gov.uk/id/local-authority/30UE,Capital,C570,Deferrd Chgs-Improvemnt Grants,DFG WORK TO ADAPT A BATHROOM AS PER SRBC PLANS AT ADDRESS REDACTED. QUOTE SUPPLIED 4956.00 TOTAL 4956.00,03/03/2021,0000464855,"4,456.00",Revenue,LTL CONSTRUCTION & MAINTENANCE LTD,0
South Ribble Borough Council,http://statistics.data.gov.uk/id/local-authority/30UE,Capital,C570,Deferrd Chgs-Improvemnt Grants,DFG WORK TO ADAPT A LEVEL ACCESS BATHROOM AS PER SRBC PLANS AND QUOTE SUPPLIED OF 4004.00. GRANT 2973.12,12/03/2021,0000465238,"2,778.12",Revenue,LTL CONSTRUCTION & MAINTENANCE LTD,0
South Ribble Borough Council,http://statistics.data.gov.uk/id/local-authority/30UE,Capital,C230,Capital Other Land & Bldgs,"AGP, Pavilion, Car Park & Assoc works as per 20P-060-001 Surface water drainage at Bamber Bridge Leisure Centre as per NAME REDACTED",26/03/2021,0000464718,"10,608.00",Revenue,Lynas Engineers,0
South Ribble Borough Council,http://statistics.data.gov.uk/id/local-authority/30UE,Open Spaces,4040,Furniture- Equip & Materials,20 tonnes dark limestone 20mm to dust St Marys Church Church Avenue Penwortham Thursday 28th January @ 10.00am,17/03/2021,0000465273,416.00,Revenue,M C & M A STEWART HAULAGE LTD,0
South Ribble Borough Council,http://statistics.data.gov.uk/id/local-authority/30UE,Open Spaces,4040,Furniture- Equip & Materials,"40 tonnes 20mm to Dust Limestone Delivery to St Marys Church, Church Avenue, Penwortham PR1 AH First Load - Tuesday 19th January ",17/03/2021,0000465274,831.17,Revenue,M C & M A STEWART HAULAGE LTD,0
South Ribble Borough Council,http://statistics.data.gov.uk/id/local-authority/30UE,Capital,C570,Deferrd Chgs-Improvemnt Grants,DFG WORKS FOR LEVEL ACCESS BATHROOM AT ADDRESS REDACTED New progress so 50%  paid via the grant is 3610.56,10/03/2021,0000465078,"3,279.11",Revenue,MAHONEY CONTRACTORS LTD,0
South Ribble Borough Council,http://statistics.data.gov.uk/id/local-authority/30UE,Capital,C570,Deferrd Chgs-Improvemnt Grants,DFG WORKS FOR INSTALLATION OF LEVEL ACCESS SHOWER  ADDRESS REDACTED. New progress so 50% paid via the grant is 3162.31,10/03/2021,0000465106,"2,781.87",Revenue,MAHONEY CONTRACTORS LTD,0
South Ribble Borough Council,http://statistics.data.gov.uk/id/local-authority/30UE,Capital,C570,Deferrd Chgs-Improvemnt Grants,DFG WORKS FOR LEVEL ACCESS BATHROOM AT ADDRESS REDACTED New progress so 50% to be paid via the grant is 3039.45,10/03/2021,0000465110,"2,706.14",Revenue,MAHONEY CONTRACTORS LTD,0
South Ribble Borough Council,http://statistics.data.gov.uk/id/local-authority/30UE,Capital,C570,Deferrd Chgs-Improvemnt Grants,DFG WORKS FOR RAMP ACCESS  AT ADDRESS REDACTED New progress property so 50% to be paid via the grant is 2375.00,17/03/2021,0000465803,"2,375.00",Revenue,MAHONEY CONTRACTORS LTD,0
South Ribble Borough Council,http://statistics.data.gov.uk/id/local-authority/30UE,Capital,C570,Deferrd Chgs-Improvemnt Grants,DFG WORKS FOR LEVEL ACCESS BATHROOM AT ADDRESS REDACTED New progress property so 50%  to be paid via the grant is 3121.66,24/03/2021,0000465942,"3,121.66",Revenue,MAHONEY CONTRACTORS LTD,0
South Ribble Borough Council,http://statistics.data.gov.uk/id/local-authority/30UE,Capital,C570,Deferrd Chgs-Improvemnt Grants,DFG WORKS FOR LEVEL ACCESS BATHROOM AT ADDRESS REDACTED New progress property so 50% to be paid via the grant is 3805.14,24/03/2021,0000465946,"3,302.55",Revenue,MAHONEY CONTRACTORS LTD,0
South Ribble Borough Council,http://statistics.data.gov.uk/id/local-authority/30UE,Capital,C570,Deferrd Chgs-Improvemnt Grants,DFG WORKS FOR LEVEL ACCESS BATHROOM AT ADDRESS REDACTED New progress property so 50% to be paid via the grant is 3376.58,24/03/2021,0000465947,"2,824.60",Revenue,MAHONEY CONTRACTORS LTD,0
South Ribble Borough Council,http://statistics.data.gov.uk/id/local-authority/30UE,Capital,C570,Deferrd Chgs-Improvemnt Grants,DFG WORKS FOR LEVEL ACCESS BATHROOM AT ADDRESS REDACTED. New progress property so 50% to be paid via the grant is 3605.71,24/03/2021,0000465948,"3,490.71",Revenue,MAHONEY CONTRACTORS LTD,0
South Ribble Borough Council,http://statistics.data.gov.uk/id/local-authority/30UE,Capital,C570,Deferrd Chgs-Improvemnt Grants,DFG WORKS FOR LEVEL ACCESS BATHROOM AT ADDRESS REDACTED New progress property so 50% to be paid via the grant is 3396.64,24/03/2021,0000465950,"3,396.64",Revenue,MAHONEY CONTRACTORS LTD,0
South Ribble Borough Council,http://statistics.data.gov.uk/id/local-authority/30UE,Parking Services,4040,Furniture- Equip & Materials,1 x GRANGE LANE,03/03/2021,0000464868,40.00,Revenue,Main Street Signs Ltd,0
South Ribble Borough Council,http://statistics.data.gov.uk/id/local-authority/30UE,Parking Services,4040,Furniture- Equip & Materials,2 x THE CEDARS  T,03/03/2021,0000464868,84.00,Revenue,Main Street Signs Ltd,0
South Ribble Borough Council,http://statistics.data.gov.uk/id/local-authority/30UE,Parking Services,4040,Furniture- Equip & Materials,1 x DRUMACRE LANE EAST,03/03/2021,0000464868,16.00,Revenue,Main Street Signs Ltd,0
South Ribble Borough Council,http://statistics.data.gov.uk/id/local-authority/30UE,Parking Services,4040,Furniture- Equip & Materials,1 x DRUMACRE LANE WEST,03/03/2021,0000464868,46.00,Revenue,Main Street Signs Ltd,0
South Ribble Borough Council,http://statistics.data.gov.uk/id/local-authority/30UE,Parking Services,4040,Furniture- Equip & Materials,1 x WILLOW WAY  T,03/03/2021,0000464868,42.00,Revenue,Main Street Signs Ltd,0
South Ribble Borough Council,http://statistics.data.gov.uk/id/local-authority/30UE,Parking Services,4040,Furniture- Equip & Materials,2 x MOSSWAY,03/03/2021,0000464868,74.00,Revenue,Main Street Signs Ltd,0
South Ribble Borough Council,http://statistics.data.gov.uk/id/local-authority/30UE,Parking Services,4040,Furniture- Equip & Materials,2 x HOLLINGS,03/03/2021,0000464868,76.00,Revenue,Main Street Signs Ltd,0
South Ribble Borough Council,http://statistics.data.gov.uk/id/local-authority/30UE,Parking Services,4040,Furniture- Equip & Materials,1 x ASH GROVE  T,03/03/2021,0000464868,41.00,Revenue,Main Street Signs Ltd,0
South Ribble Borough Council,http://statistics.data.gov.uk/id/local-authority/30UE,Parking Services,4040,Furniture- Equip & Materials,2 x WOODLANDS AVENUE,03/03/2021,0000464868,90.00,Revenue,Main Street Signs Ltd,0
South Ribble Borough Council,http://statistics.data.gov.uk/id/local-authority/30UE,Parking Services,4040,Furniture- Equip & Materials,1 x GLENEAGLES DRIVE,03/03/2021,0000464868,45.00,Revenue,Main Street Signs Ltd,0
South Ribble Borough Council,http://statistics.data.gov.uk/id/local-authority/30UE,Parking Services,4040,Furniture- Equip & Materials,2 x LATIMAR DRIVE,03/03/2021,0000464868,84.00,Revenue,Main Street Signs Ltd,0
South Ribble Borough Council,http://statistics.data.gov.uk/id/local-authority/30UE,Parking Services,4040,Furniture- Equip & Materials,2 x LONGWORTH STREET   T,03/03/2021,0000464868,36.00,Revenue,Main Street Signs Ltd,0
South Ribble Borough Council,http://statistics.data.gov.uk/id/local-authority/30UE,Parking Services,4040,Furniture- Equip & Materials,1 x KENTMERE AVENUE,03/03/2021,0000464868,44.00,Revenue,Main Street Signs Ltd,0
South Ribble Borough Council,http://statistics.data.gov.uk/id/local-authority/30UE,Parking Services,4040,Furniture- Equip & Materials,1 x GRASMERE CLOSE  T,03/03/2021,0000464868,46.00,Revenue,Main Street Signs Ltd,0
South Ribble Borough Council,http://statistics.data.gov.uk/id/local-authority/30UE,Parking Services,4040,Furniture- Equip & Materials,2 x CONISTON DRIVE,03/03/2021,0000464868,86.00,Revenue,Main Street Signs Ltd,0
South Ribble Borough Council,http://statistics.data.gov.uk/id/local-authority/30UE,Parking Services,4040,Furniture- Equip & Materials,1 x AMBLESIDE CLOSE  T,03/03/2021,0000464868,47.00,Revenue,Main Street Signs Ltd,0
South Ribble Borough Council,http://statistics.data.gov.uk/id/local-authority/30UE,Parking Services,4040,Furniture- Equip & Materials,CARRIAGE,03/03/2021,0000464868,72.00,Revenue,Main Street Signs Ltd,0
South Ribble Borough Council,http://statistics.data.gov.uk/id/local-authority/30UE,Recreation & Sport,2020,Premises Repair & Mtne, Fire Risk Assessments at each of the leisure sites. As per NAME REDACTED request Tennis Centre,26/03/2021,0000466008,625.00,Revenue,Manchester Fire Compliance Ltd,0
South Ribble Borough Council,http://statistics.data.gov.uk/id/local-authority/30UE,Recreation & Sport,2020,Premises Repair & Mtne, Leyland Leisure Centre,26/03/2021,0000466008,625.00,Revenue,Manchester Fire Compliance Ltd,0
South Ribble Borough Council,http://statistics.data.gov.uk/id/local-authority/30UE,Recreation & Sport,2020,Premises Repair & Mtne, Bamber Bridge Leisure Centre,26/03/2021,0000466008,625.00,Revenue,Manchester Fire Compliance Ltd,0
South Ribble Borough Council,http://statistics.data.gov.uk/id/local-authority/30UE,Recreation & Sport,2020,Premises Repair & Mtne, Penwortham Leisure Centre.,26/03/2021,0000466008,625.00,Revenue,Manchester Fire Compliance Ltd,0
South Ribble Borough Council,http://statistics.data.gov.uk/id/local-authority/30UE,Capital,C210,Capital Other Land & Bldgs,Surveyor fees for 12 month maternity cover for DFG cases 20000,10/03/2021,0000465194,"1,680.00",Revenue,Mathew Butterworth Associates Limited,0
South Ribble Borough Council,http://statistics.data.gov.uk/id/local-authority/30UE,Central Support Services,1402,Training Expenses,SEASON TICKET UPGRADE FOR SRBC - 2021,10/03/2021,0000465072,270.00,Revenue,MBL SEMINARS,0
South Ribble Borough Council,http://statistics.data.gov.uk/id/local-authority/30UE,Central Support Services,1402,Training Expenses,SMART PLAN RENEWAL FOR SRBC - 2021,10/03/2021,0000465079,500.00,Revenue,MBL SEMINARS,0
South Ribble Borough Council,http://statistics.data.gov.uk/id/local-authority/30UE,Central Support Services,4521,Services,Provision of Stray Dog Service December 2020,03/03/2021,0000464881,428.38,Revenue,MORNINGSIDE KENNELS,0
South Ribble Borough Council,http://statistics.data.gov.uk/id/local-authority/30UE,Central Support Services,4521,Services,Provision of stray dog service January 2021,03/03/2021,0000464882,343.93,Revenue,MORNINGSIDE KENNELS,0
South Ribble Borough Council,http://statistics.data.gov.uk/id/local-authority/30UE,Economic Development,4010,Furniture- Equip & Materials,Please supply tables & chairs for the caf� at Leyland market as agreed with the Market manager,24/03/2021,0000465804,944.00,Revenue,Mr Gareth Roberts,0
South Ribble Borough Council,http://statistics.data.gov.uk/id/local-authority/30UE,Capital,C570,Deferrd Chgs-Improvemnt Grants,DFG WORK TO COMPLETE RAMP WORK AS PER SRBC PLANS AND SPEC AT ADDRESS REDACTED AS PER QUOTE SUPPLIED 1467.00,24/03/2021,0000465952,"1,467.00",Revenue,MSG Building and Construction Ltd,0
South Ribble Borough Council,http://statistics.data.gov.uk/id/local-authority/30UE,Community Development,4851,Miscellaneous Expenses,Digital Inclusion Project � x15 Device purchase - per NAME REDACTED,10/03/2021,0000464643,"1,920.00",Revenue,MYPREMIER LTD,0
South Ribble Borough Council,http://statistics.data.gov.uk/id/local-authority/30UE,Central Support Services,4241,Communications & Comuting,Renew - PDQ Deploy Enterprise - 1 Year - 27/03/21 - 26/03/22,26/03/2021,0000466183,480.00,Revenue,MYPREMIER LTD,0
South Ribble Borough Council,http://statistics.data.gov.uk/id/local-authority/30UE,Central Support Services,4570,Services,Service Wash VU11HSZ JFC16278,10/03/2021,0000464950,65.00,Revenue,NAYLORS TRANSPORT (LEYLAND) ltd,0
South Ribble Borough Council,http://statistics.data.gov.uk/id/local-authority/30UE,Central Support Services,4570,Services,Service Wash VU58JXK JFC16279,10/03/2021,0000464950,65.00,Revenue,NAYLORS TRANSPORT (LEYLAND) ltd,0
South Ribble Borough Council,http://statistics.data.gov.uk/id/local-authority/30UE,Central Support Services,4570,Services,Service Wash YD19ATK JFC16280,10/03/2021,0000464950,65.00,Revenue,NAYLORS TRANSPORT (LEYLAND) ltd,0
South Ribble Borough Council,http://statistics.data.gov.uk/id/local-authority/30UE,Central Support Services,4570,Services,Service Wash YE19 JPW JFC16281,10/03/2021,0000464950,65.00,Revenue,NAYLORS TRANSPORT (LEYLAND) ltd,0
South Ribble Borough Council,http://statistics.data.gov.uk/id/local-authority/30UE,Central Support Services,4570,Services,Service Wash YD19AYK JFC16282,10/03/2021,0000464950,65.00,Revenue,NAYLORS TRANSPORT (LEYLAND) ltd,0
South Ribble Borough Council,http://statistics.data.gov.uk/id/local-authority/30UE,Central Support Services,4570,Services,Service Wash DX19XBJ JFC16283,10/03/2021,0000464950,65.00,Revenue,NAYLORS TRANSPORT (LEYLAND) ltd,0
South Ribble Borough Council,http://statistics.data.gov.uk/id/local-authority/30UE,Parking Services,4514,Services,Deployment of officers January 2021,03/03/2021,0000463923,"1,661.33",Revenue,NSL LTD,0
South Ribble Borough Council,http://statistics.data.gov.uk/id/local-authority/30UE,Parking Services,4855,Miscellaneous Expenses,Cash Collection and Ringo Charges- January  2021,03/03/2021,0000463923,512.04,Revenue,NSL LTD,0
South Ribble Borough Council,http://statistics.data.gov.uk/id/local-authority/30UE,Parking Services,4855,Miscellaneous Expenses,Ringo convenience charges - January 2021,03/03/2021,0000463923,112.35,Revenue,NSL LTD,0
South Ribble Borough Council,http://statistics.data.gov.uk/id/local-authority/30UE,Parking Services,4855,Miscellaneous Expenses,Deployment of officers February 2021,12/03/2021,0000465200,"1,621.51",Revenue,NSL LTD,0
South Ribble Borough Council,http://statistics.data.gov.uk/id/local-authority/30UE,Parking Services,4855,Miscellaneous Expenses,Cash collection and Ringo Charges February 2021,12/03/2021,0000465200,488.28,Revenue,NSL LTD,0
South Ribble Borough Council,http://statistics.data.gov.uk/id/local-authority/30UE,Parking Services,4855,Miscellaneous Expenses,Ringo Convenience Charge February 2021,12/03/2021,0000465200,109.95,Revenue,NSL LTD,0
South Ribble Borough Council,http://statistics.data.gov.uk/id/local-authority/30UE,Central Support Services,4247,Communications & Comuting,"1yr Essential Support for Forcepoint NGFW 1101 Appliance, Support PoL for period 14/03/21 - 13/03/22 as per quote",24/03/2021,0000465914,930.00,Revenue,NVIRON LTD,0
South Ribble Borough Council,http://statistics.data.gov.uk/id/local-authority/30UE,Community Development,4730,Grants & Subscriptions,Supply and delivery of food for the Holiday Hunger scheme - Spring 2021,24/03/2021,0000465953,"20,520.00",Revenue,Oncore Trading,0
South Ribble Borough Council,http://statistics.data.gov.uk/id/local-authority/30UE,Community Development,4730,Grants & Subscriptions,vat items,24/03/2021,0000465953,"2,280.00",Revenue,Oncore Trading,0
South Ribble Borough Council,http://statistics.data.gov.uk/id/local-authority/30UE,Central Support Services,4040,Furniture- Equip & Materials,1 Mosquito II Brush sets @ 92.00 - BIN 1083,10/03/2021,0000465113,186.00,Revenue,Overton (UK) Ltd,0
South Ribble Borough Council,http://statistics.data.gov.uk/id/local-authority/30UE,Central Support Services,4040,Furniture- Equip & Materials,2 x Rubber Guards @ 25.00 BIN 1084,10/03/2021,0000465113,51.92,Revenue,Overton (UK) Ltd,0
South Ribble Borough Council,http://statistics.data.gov.uk/id/local-authority/30UE,Central Support Services,4040,Furniture- Equip & Materials,Carriage (Estimated),10/03/2021,0000465113,16.95,Revenue,Overton (UK) Ltd,0
South Ribble Borough Council,http://statistics.data.gov.uk/id/local-authority/30UE,Capital,C230,Capital Other Land & Bldgs,"GPR survey, producing a suitably scaled Adobe PDF & AutoCAD drawing",12/03/2021,0000464955,"1,100.00",Revenue,Paragon Surveys Ltd,0
South Ribble Borough Council,http://statistics.data.gov.uk/id/local-authority/30UE,Central Support Services,2711,Cleaning & Domestic Supplies,Invoice 1872467 - Old invoice to be cleared.  Old PO PUR0039560,10/03/2021,0000464891,355.12,Revenue,Pattersons (Bristol) Ltd,0
South Ribble Borough Council,http://statistics.data.gov.uk/id/local-authority/30UE,Central Support Services,2711,Cleaning & Domestic Supplies,BA030-75 - JANGRO GLASS & MIRROR CLEANER 750ML,26/03/2021,0000465265,15.72,Revenue,Pattersons (Bristol) Ltd,0
South Ribble Borough Council,http://statistics.data.gov.uk/id/local-authority/30UE,Central Support Services,2711,Cleaning & Domestic Supplies,BC015-75 - JANGRO THICKENED BLEACH 750ML,26/03/2021,0000465265,18.00,Revenue,Pattersons (Bristol) Ltd,0
South Ribble Borough Council,http://statistics.data.gov.uk/id/local-authority/30UE,Central Support Services,2711,Cleaning & Domestic Supplies,AA201 - JANGRO MICRO MINI TOILET ROLL 100M X 90MM (24 Pack),26/03/2021,0000465265,84.72,Revenue,Pattersons (Bristol) Ltd,0
South Ribble Borough Council,http://statistics.data.gov.uk/id/local-authority/30UE,Central Support Services,2711,Cleaning & Domestic Supplies,CG106-Y - EXEL MICROFIBRE SUPER CLOTH,26/03/2021,0000465265,7.80,Revenue,Pattersons (Bristol) Ltd,0
South Ribble Borough Council,http://statistics.data.gov.uk/id/local-authority/30UE,Central Support Services,2711,Cleaning & Domestic Supplies,"HL005-Y - JANGRO SOFT EASIGRIP SPONGE SCOURING PAD, YELLOW/WHITE",26/03/2021,0000465265,6.50,Revenue,Pattersons (Bristol) Ltd,0
South Ribble Borough Council,http://statistics.data.gov.uk/id/local-authority/30UE,Central Support Services,2711,Cleaning & Domestic Supplies,AE234 - TORK S-FOLD HAND TOWEL 1PLY BLUE (4000SHT),26/03/2021,0000465265,66.25,Revenue,Pattersons (Bristol) Ltd,0
South Ribble Borough Council,http://statistics.data.gov.uk/id/local-authority/30UE,Central Support Services,2711,Cleaning & Domestic Supplies,CM180 - JANGRO REFUSE SACKS 18X29X39 180G HEAVY DUTY BLACK (200),26/03/2021,0000465265,82.25,Revenue,Pattersons (Bristol) Ltd,0
South Ribble Borough Council,http://statistics.data.gov.uk/id/local-authority/30UE,Central Support Services,2711,Cleaning & Domestic Supplies,"CG106-G	- EXEL MICROFIBRE SUPER CLOTH 40X 40CM GREEN     (10)",26/03/2021,0000465265,7.80,Revenue,Pattersons (Bristol) Ltd,0
South Ribble Borough Council,http://statistics.data.gov.uk/id/local-authority/30UE,Central Support Services,2711,Cleaning & Domestic Supplies,HL005-B - SOFT EASIGRIP SPONGE SCOURING PAD BLUE/WHITE (10),26/03/2021,0000465265,6.50,Revenue,Pattersons (Bristol) Ltd,0
South Ribble Borough Council,http://statistics.data.gov.uk/id/local-authority/30UE,Central Support Services,2711,Cleaning & Domestic Supplies,"BC045-1	- JANGRO TOILET & WASHROOM CLEANER DESCALER  1 LTR",26/03/2021,0000465265,22.56,Revenue,Pattersons (Bristol) Ltd,0
South Ribble Borough Council,http://statistics.data.gov.uk/id/local-authority/30UE,Central Support Services,2711,Cleaning & Domestic Supplies,"DG154-M	 - JANGRO LATEX DISP. GLOVES POWDER FREE NATURAL MEDIUM  (100)",26/03/2021,0000465265,46.20,Revenue,Pattersons (Bristol) Ltd,0
South Ribble Borough Council,http://statistics.data.gov.uk/id/local-authority/30UE,Central Support Services,2711,Cleaning & Domestic Supplies,"CG106-P	EXEL MICROFIBRE SUPER CLOTH 40X 40CM PINK (10)",26/03/2021,0000465265,7.80,Revenue,Pattersons (Bristol) Ltd,0
South Ribble Borough Council,http://statistics.data.gov.uk/id/local-authority/30UE,Central Support Services,2711,Cleaning & Domestic Supplies,"DG150-L	- JANGRO PROFESSIONAL NITRILE DISPOSABLE GLOVE POWDER FREE BLUE LARGE x 100",26/03/2021,0000465265,65.82,Revenue,Pattersons (Bristol) Ltd,0
South Ribble Borough Council,http://statistics.data.gov.uk/id/local-authority/30UE,Central Support Services,2711,Cleaning & Domestic Supplies,"BC040-1	- JANGRO PERFUMED TOILET CLEANER 1LTR",26/03/2021,0000465265,21.60,Revenue,Pattersons (Bristol) Ltd,0
South Ribble Borough Council,http://statistics.data.gov.uk/id/local-authority/30UE,Central Support Services,2711,Cleaning & Domestic Supplies,TEMP025 - Sanitising Wipes,26/03/2021,0000465265,26.70,Revenue,Pattersons (Bristol) Ltd,0
South Ribble Borough Council,http://statistics.data.gov.uk/id/local-authority/30UE,Central Support Services,2711,Cleaning & Domestic Supplies,HA015-G - Mop Heads,26/03/2021,0000465265,9.00,Revenue,Pattersons (Bristol) Ltd,0
South Ribble Borough Council,http://statistics.data.gov.uk/id/local-authority/30UE,Central Support Services,2711,Cleaning & Domestic Supplies,HA015-R - Mop Heads,26/03/2021,0000465265,9.00,Revenue,Pattersons (Bristol) Ltd,0
South Ribble Borough Council,http://statistics.data.gov.uk/id/local-authority/30UE,Surplus or Deficit on Trading,2020,Premises Repair & Mtne,Please undertake works to the walled garden worden park as detailed in your estimate 104,10/03/2021,0000465162,640.00,Revenue,PDP PROPERTY SERVICES LTD,0
South Ribble Borough Council,http://statistics.data.gov.uk/id/local-authority/30UE,Central Support Services,2020,Premises Repair & Mtne,"As per NAME REDACTED instruction Prepare all walls,ceilings,woodwork and metalwork, apply 2 coats of white matt to ceilings where required",24/03/2021,0000465196,"9,769.20",Revenue,PDP PROPERTY SERVICES LTD,0
South Ribble Borough Council,http://statistics.data.gov.uk/id/local-authority/30UE,Community Safety Services,4541,Services,2019 Penwortham Community Centre Project - per NAME REDACTED,10/03/2021,0000465198,"5,185.00",Revenue,PENWORTHAM TOWN COUNCIL,0
South Ribble Borough Council,http://statistics.data.gov.uk/id/local-authority/30UE,Recycling,4127,Printing- Stat & Office Expens,Provision & posting of garden waste permits 2021/22 and hosting of permit management website. As per quote dated 28/08/2020 (quote no. 00024),19/03/2021,0000465821,"2,588.18",Revenue,Permiserv Ltd,0
South Ribble Borough Council,http://statistics.data.gov.uk/id/local-authority/30UE,Central Support Services,4012,Furniture- Equip & Materials,"2020 / 2021 contract for the provision of sanitary services at Moss Side Depot, Bison Place, Leyland",10/03/2021,0000465104,410.88,Revenue,PHS GROUP PLC,0
South Ribble Borough Council,http://statistics.data.gov.uk/id/local-authority/30UE,Central Support Services,4012,Furniture- Equip & Materials,2020 / 2021 contract for the provision of sanitary services at the Civic Centre,10/03/2021,0000465105,982.31,Revenue,PHS GROUP PLC,0
South Ribble Borough Council,http://statistics.data.gov.uk/id/local-authority/30UE,Central Support Services,4040,Furniture- Equip & Materials,1 x 205 litre Red Antifreeze @ 1.45 ppl,26/03/2021,0000466184,297.25,Revenue,PILKINGTON OILS,0
South Ribble Borough Council,http://statistics.data.gov.uk/id/local-authority/30UE,Central Support Services,1121,Salaries,Planning Enforcement consultancy services,24/03/2021,0000465204,"1,121.00",Revenue,Planning Control & PACE Solutions,0
South Ribble Borough Council,http://statistics.data.gov.uk/id/local-authority/30UE,Central Support Services,1121,Salaries,Planning Enforcement consultancy services,24/03/2021,0000465918,"1,187.50",Revenue,Planning Control & PACE Solutions,0
South Ribble Borough Council,http://statistics.data.gov.uk/id/local-authority/30UE,Central Support Services,1121,Salaries,post,24/03/2021,0000465918,30.60,Revenue,Planning Control & PACE Solutions,0
South Ribble Borough Council,http://statistics.data.gov.uk/id/local-authority/30UE,Community Safety Services,4273,Communications & Comuting,"8,000 contribution from South Ribble Borough Council for the Domestic Abuse element of Lancashire Victim Services� per NAME REDACTED",17/03/2021,0000465807,"8,000.00",Revenue,POLICE & CRIME COMMISSIONER LANCS POLICE,0
South Ribble Borough Council,http://statistics.data.gov.uk/id/local-authority/30UE,Central Support Services,4133,Printing- Stat & Office Expens,"40,000 Evolution Everyday A4 80gm, 2500 Evolution Everyday A3 80gm, 15000 Evolution Business A4 90gm",19/03/2021,0000465811,364.78,Revenue,PREMIER PAPER GROUP LTD,0
South Ribble Borough Council,http://statistics.data.gov.uk/id/local-authority/30UE,Elections,4970,Miscellaneous Expenses,"PLEASE PROVIDE 12,000 ITR OUTER ENVELOPES AS PER ACKNOWLEDGMENT NUMBER 7707",19/03/2021,0000465831,520.80,Revenue,PRINT IMAGE NETWORK LTD,0
South Ribble Borough Council,http://statistics.data.gov.uk/id/local-authority/30UE,Elections,4127,Printing- Stat & Office Expens,2021 PI REFRESH - INITIAL LETTER TO ELECTORS ADVISING THEM WE NEED A NEW SIGNATURE - APPROX 2350 RECORDS (ACK 7561),26/03/2021,0000466152,"1,986.86",Revenue,PRINT IMAGE NETWORK LTD,0
South Ribble Borough Council,http://statistics.data.gov.uk/id/local-authority/30UE,Elections,4127,Printing- Stat & Office Expens,2021 PI REFRESH - REMINDER LETTER TO THOSE NOT RESPONDING TO MAILING 1 - APPROX 1170 RECORDS (ACK 7561),26/03/2021,0000466152,536.93,Revenue,PRINT IMAGE NETWORK LTD,0
South Ribble Borough Council,http://statistics.data.gov.uk/id/local-authority/30UE,Elections,4127,Printing- Stat & Office Expens,2021 PI REFRESH - CANCELLATION LETTER TO THOSE WHO HAVE NOT RESPONDED TO MAILING 1 OR 2 - (ACK 7561),26/03/2021,0000466152,209.21,Revenue,PRINT IMAGE NETWORK LTD,0
South Ribble Borough Council,http://statistics.data.gov.uk/id/local-authority/30UE,Capital,C570,Deferrd Chgs-Improvemnt Grants,DFG BATHROOM FOR LEVEL ACCESS SHOWER AT ADDRESS REDACTED ACCENT PROPERTY SO 50% via GRANT 1840.00,12/03/2021,0000465263,"1,680.00",Revenue,QTS CONTRACTS LTD,0
South Ribble Borough Council,http://statistics.data.gov.uk/id/local-authority/30UE,Capital,C230,Capital Other Land & Bldgs,"Alteration, Adaption, Extension and Refurbishment Works - Hurst Grange Coach House, Penwortham",05/03/2021,0000464988,"44,084.54",Revenue,R Developments Ltd T/A Rosslee Construction Ltd,0
South Ribble Borough Council,http://statistics.data.gov.uk/id/local-authority/30UE,Open Spaces,3212,Contract Hire & Operating Leas,1.8T Excavator On hire 19.1.21 for 1 week,10/03/2021,0000464372,522.00,Revenue,Readyplant Limited,0
South Ribble Borough Council,http://statistics.data.gov.uk/id/local-authority/30UE,Development Control,4510,Services,Three visits to rosebay gardens,24/03/2021,0000465881,280.00,Revenue,RED ROSE BUILDING MAINTENANCE,0
South Ribble Borough Council,http://statistics.data.gov.uk/id/local-authority/30UE,Open Spaces,4570,Services,"Root clearance from chamber, Willow Close, Tardy Gate",26/03/2021,0000465957,400.00,Revenue,RED ROSE BUILDING MAINTENANCE,0
South Ribble Borough Council,http://statistics.data.gov.uk/id/local-authority/30UE,Recreation & Sport,2020,Premises Repair & Mtne,Please jet out 3 channel drains at Leyland leisure centre,24/03/2021,0000465958,360.00,Revenue,RED ROSE BUILDING MAINTENANCE,0
South Ribble Borough Council,http://statistics.data.gov.uk/id/local-authority/30UE,Recreation & Sport,2020,Premises Repair & Mtne,"Large areas of tarmac groundworks, filling pot holes etc as per inspection. NAME REDACTED request, for the leisure take back remedial works.",24/03/2021,0000465964,650.00,Revenue,RED ROSE BUILDING MAINTENANCE,0
South Ribble Borough Council,http://statistics.data.gov.uk/id/local-authority/30UE,Recreation & Sport,2020,Premises Repair & Mtne,LABOUR,24/03/2021,0000465964,350.00,Revenue,RED ROSE BUILDING MAINTENANCE,0
South Ribble Borough Council,http://statistics.data.gov.uk/id/local-authority/30UE,Surplus or Deficit on Trading,2020,Premises Repair & Mtne,Unit 17 c Boxer Place - point the brickwork between and ceiling to seal around the windows to unblock the guttering and to jet the downspout,24/03/2021,0000465965,70.00,Revenue,RED ROSE BUILDING MAINTENANCE,0
South Ribble Borough Council,http://statistics.data.gov.uk/id/local-authority/30UE,Surplus or Deficit on Trading,2020,Premises Repair & Mtne,LABOUR,24/03/2021,0000465965,180.00,Revenue,RED ROSE BUILDING MAINTENANCE,0
South Ribble Borough Council,http://statistics.data.gov.uk/id/local-authority/30UE,Surplus or Deficit on Trading,2020,Premises Repair & Mtne,"Water Meter � Worden Park, Kiosk. Replacement -  350. As per NAME REDACTED",24/03/2021,0000465966,200.00,Revenue,RED ROSE BUILDING MAINTENANCE,0
South Ribble Borough Council,http://statistics.data.gov.uk/id/local-authority/30UE,Surplus or Deficit on Trading,2020,Premises Repair & Mtne,LABOUR,24/03/2021,0000465966,150.00,Revenue,RED ROSE BUILDING MAINTENANCE,0
South Ribble Borough Council,http://statistics.data.gov.uk/id/local-authority/30UE,Surplus or Deficit on Trading,2020,Premises Repair & Mtne,Please carry put works as per NAME REDACTED This is to do some emergency road repairs on some extremely large potholes  at Worden park.,26/03/2021,0000466033,350.00,Revenue,RED ROSE BUILDING MAINTENANCE,0
South Ribble Borough Council,http://statistics.data.gov.uk/id/local-authority/30UE,Recreation & Sport,2020,Premises Repair & Mtne,"Large areas of tarmac groundworks, filling pot holes etc as per inspection. NAME REDACTED request, for the leisure take back remedial works.",26/03/2021,0000466039,"1,000.00",Revenue,RED ROSE BUILDING MAINTENANCE,0
South Ribble Borough Council,http://statistics.data.gov.uk/id/local-authority/30UE,Surplus or Deficit on Trading,2020,Premises Repair & Mtne,"North Lodge, Worden Park to Jet the drains on 11th & 12th March as agreed with facilities management also CCTV to check for any blockages",26/03/2021,0000466041,610.00,Revenue,RED ROSE BUILDING MAINTENANCE,0
South Ribble Borough Council,http://statistics.data.gov.uk/id/local-authority/30UE,Capital,C230,Capital Other Land & Bldgs,On site supervision for Hurst Grange Coach House consisting of 3 No site visits any associated details/advice,12/03/2021,0000464396,450.00,Revenue,Reid Jones Partnership,0
South Ribble Borough Council,http://statistics.data.gov.uk/id/local-authority/30UE,Open Spaces,4040,Furniture- Equip & Materials,TRUSTEE AMENITY 450gl - @27.00,10/03/2021,0000464985,729.00,Revenue,RIGBY TAYLOR LTD,0
South Ribble Borough Council,http://statistics.data.gov.uk/id/local-authority/30UE,Open Spaces,4040,Furniture- Equip & Materials,CHIKARA TUBS 150g,10/03/2021,0000464985,"2,040.00",Revenue,RIGBY TAYLOR LTD,0
South Ribble Borough Council,http://statistics.data.gov.uk/id/local-authority/30UE,Open Spaces,4040,Furniture- Equip & Materials,1LT ICADE,10/03/2021,0000464985,42.50,Revenue,RIGBY TAYLOR LTD,0
South Ribble Borough Council,http://statistics.data.gov.uk/id/local-authority/30UE,Street Cleansing,4040,Furniture- Equip & Materials,TRUSTEE AMENITY 450gl,10/03/2021,0000464985,"1,350.00",Revenue,RIGBY TAYLOR LTD,0
South Ribble Borough Council,http://statistics.data.gov.uk/id/local-authority/30UE,Street Cleansing,4040,Furniture- Equip & Materials,1LT ICADE,10/03/2021,0000464985,42.50,Revenue,RIGBY TAYLOR LTD,0
South Ribble Borough Council,http://statistics.data.gov.uk/id/local-authority/30UE,Central Support Services,4040,Furniture- Equip & Materials,1 x Hopper Floor PJ62 UCM JFC16234,26/03/2021,0000464695,"1,764.60",Revenue,RTS Muni,0
South Ribble Borough Council,http://statistics.data.gov.uk/id/local-authority/30UE,Central Support Services,4821,Miscellaneous Expenses,PROFESSIONAL SERVICES IN REGARD TO ADDRESS REDACTED,10/03/2021,0000465209,"1,800.00",Revenue,RUTH STOCKLEY,0
South Ribble Borough Council,http://statistics.data.gov.uk/id/local-authority/30UE,Central Support Services,4821,Miscellaneous Expenses,"PROFESSIONAL SERVICES IN RELATION TO ORCHARD FARM, RATTAN LANE. POTENTIAL JR",24/03/2021,0000465915,500.00,Revenue,RUTH STOCKLEY,0
South Ribble Borough Council,http://statistics.data.gov.uk/id/local-authority/30UE,Short Term Debtors,0030,Balance Sheet,To supply  continued Commercial Estates support for the Test Track mixed use development as per NAME REDACTED,05/03/2021,0000464974,"3,565.83",Revenue,Sanderson Weatherall LLP,0
South Ribble Borough Council,http://statistics.data.gov.uk/id/local-authority/30UE,Capital,C230,Capital Other Land & Bldgs,McKenzie Arms - RIBA Stage 4A Technical Design in accordance with fee proposal dated 11.11.2020,05/03/2021,0000464984,"3,000.00",Revenue,Sanderson Weatherall LLP,0
South Ribble Borough Council,http://statistics.data.gov.uk/id/local-authority/30UE,Capital,C230,Capital Other Land & Bldgs,McKenzie Arms - RIBA Stage 4A Technical Design in accordance with fee proposal dated 11.11.2020,10/03/2021,0000465098,"8,000.00",Revenue,Sanderson Weatherall LLP,0
South Ribble Borough Council,http://statistics.data.gov.uk/id/local-authority/30UE,Recreation & Sport,4536,Services,R & M for 2020/2021,10/03/2021,0000465080,"14,801.50",Revenue,SERCO LEISURE (OP) LTD,0
South Ribble Borough Council,http://statistics.data.gov.uk/id/local-authority/30UE,Central Support Services,4520,Services,Shredding of Confidential Waste 2020/21,05/03/2021,0000464896,525.38,Revenue,SHRED-IT LTD,0
South Ribble Borough Council,http://statistics.data.gov.uk/id/local-authority/30UE,Central Support Services,4520,Services,Shredding of Confidential Waste 2020/21,05/03/2021,0000464959,481.78,Revenue,SHRED-IT LTD,0
South Ribble Borough Council,http://statistics.data.gov.uk/id/local-authority/30UE,Central Support Services,4520,Services,Shredding of Confidential Waste 2020/21,05/03/2021,0000464966,481.78,Revenue,SHRED-IT LTD,0
South Ribble Borough Council,http://statistics.data.gov.uk/id/local-authority/30UE,Central Support Services,4520,Services,Shredding - Regular service  8 March 2021,24/03/2021,0000465976,486.20,Revenue,SHRED-IT LTD,0
South Ribble Borough Council,http://statistics.data.gov.uk/id/local-authority/30UE,Development Control,4010,Furniture- Equip & Materials,Lease Rental 14 Feb 2021 - 13 April  2021,24/03/2021,0000465217,"1,015.29",Revenue,Siemens Financial Services Limited,0
South Ribble Borough Council,http://statistics.data.gov.uk/id/local-authority/30UE,Capital,C230,Capital Other Land & Bldgs,CDM Principal Designer Duties for Hurst Grange Park Coach House,05/03/2021,0000464952,300.00,Revenue,SkW,0
South Ribble Borough Council,http://statistics.data.gov.uk/id/local-authority/30UE,Central Support Services,4248,Communications & Comuting,"2 x AutoCAD - including specialized toolsets AD Commercial New Single-user ELD, 5 x AutoCAD LT 2021 Commercial New Single-user ELD ",24/03/2021,0000466006,"5,610.37",Revenue,SOFTCAT LIMITED,0
South Ribble Borough Council,http://statistics.data.gov.uk/id/local-authority/30UE,Recreation & Sport,4532,Services,Leisure Services Fee 2020/2021,05/03/2021,0000464819,"24,780.09",Revenue,SOUTH RIBBLE COMMUNITY LEISURE LTD,0
South Ribble Borough Council,http://statistics.data.gov.uk/id/local-authority/30UE,Corporate Management,4730,Grants & Subscriptions,National Leisure recovery Fund payment,29/03/2021,0000466190,"210,000.00",Revenue,SOUTH RIBBLE COMMUNITY LEISURE LTD,0
South Ribble Borough Council,http://statistics.data.gov.uk/id/local-authority/30UE,Short Term Creditors,0030,Balance Sheet,monthly deds frl,10/03/2021,0000465093,"1,496.66",Revenue,SOUTH RIBBLE LABOUR PARTY LOCAL GOVERNM,0
South Ribble Borough Council,http://statistics.data.gov.uk/id/local-authority/30UE,Central Support Services,4040,Furniture- Equip & Materials,DE ICER- 600ml - 28108,24/03/2021,0000465203,37.20,Revenue,SPALDINGS,0
South Ribble Borough Council,http://statistics.data.gov.uk/id/local-authority/30UE,Central Support Services,4040,Furniture- Equip & Materials,HAND WIPES (200 TUB) - WET WIPES - 30008,24/03/2021,0000465203,534.60,Revenue,SPALDINGS,0
South Ribble Borough Council,http://statistics.data.gov.uk/id/local-authority/30UE,Recreation & Sport,4510,Services,SSPWebsite Annual Hosting 2020-21,24/03/2021,0000465969,325.00,Revenue,Sport Connect Ltd,0
South Ribble Borough Council,http://statistics.data.gov.uk/id/local-authority/30UE,Short Term Creditors,0030,Balance Sheet,monthly deduc,10/03/2021,0000465091,416.64,Revenue,ST CATHERINES HOSPICE PROMOTIONS LTD,0
South Ribble Borough Council,http://statistics.data.gov.uk/id/local-authority/30UE,Service Management & Support,3132,Direct Transport Costs,16000 litres diesel @ 96.02ppl into the feeder tank at Unit 81 Bison Place Moss Side,03/03/2021,0000464661,"14,067.42",Revenue,Standard Fuel Oils LtdMain,0
South Ribble Borough Council,http://statistics.data.gov.uk/id/local-authority/30UE,Service Management & Support,3134,Direct Transport Costs,2000 litres gas oil @ 51.75ppl into tank 2,10/03/2021,0000464913,"1,035.00",Revenue,Standard Fuel Oils LtdMain,0
South Ribble Borough Council,http://statistics.data.gov.uk/id/local-authority/30UE,Service Management & Support,3132,Direct Transport Costs,16000 litres diesel @ 97.01 ppl into the feeder tank at Unit 81 Bison Place Moss Side,10/03/2021,0000464923,"14,464.19",Revenue,Standard Fuel Oils LtdMain,0
South Ribble Borough Council,http://statistics.data.gov.uk/id/local-authority/30UE,Service Management & Support,3132,Direct Transport Costs,16000 litres diesel @ 97.60ppl into the  feeder tank at Unit 81 Bison Place Moss Side,24/03/2021,0000465312,"13,768.43",Revenue,Standard Fuel Oils LtdMain,0
South Ribble Borough Council,http://statistics.data.gov.uk/id/local-authority/30UE,Capital,C230,Capital Other Land & Bldgs,Reference Bamber Bridge 2 as per NAME REDACTED Description: Great Crested Newt Strategy,03/03/2021,0000464858,500.00,Revenue,Steve Wells Associates Ltd,0
South Ribble Borough Council,http://statistics.data.gov.uk/id/local-authority/30UE,Surplus or Deficit on Trading,2401,Rents & Rates,"Rental fees from 25th March 2021 for Forward industrial estate, Talbot Road, Leyland PR25 2ZJ.",24/03/2021,0000465891,"16,147.50",Revenue,STONEWELL PROPERTY COMPANY LTD (In Administration),0
South Ribble Borough Council,http://statistics.data.gov.uk/id/local-authority/30UE,Surplus or Deficit on Trading,2401,Rents & Rates,Less ground rent,24/03/2021,0000465891,"-2,850.00",Revenue,STONEWELL PROPERTY COMPANY LTD (In Administration),0
South Ribble Borough Council,http://statistics.data.gov.uk/id/local-authority/30UE,Central Support Services,4243,Communications & Comuting,Survey Monkey - Advantage Annual Plan Subscription - 22nd March 2021 - 21st March 2022,26/03/2021,0000465970,320.00,Revenue,SURVEY MONKEY,0
South Ribble Borough Council,http://statistics.data.gov.uk/id/local-authority/30UE,Central Support Services,4520,Services,NAFN Fees 2021/22,24/03/2021,0000465972,"1,600.00",Revenue,TAMESIDE METROPOLITAN BOROUGH COUNCIL,0
South Ribble Borough Council,http://statistics.data.gov.uk/id/local-authority/30UE,Central Support Services,4040,Furniture- Equip & Materials,"N11 Sensor Switch, VO65 KRD, JFC16225",24/03/2021,0000465193,295.57,Revenue,Taylor Enginering & Fabrications Ltd,0
South Ribble Borough Council,http://statistics.data.gov.uk/id/local-authority/30UE,Suspended Items,4510,Services,Consultancy fees for the South Ribble Borough Council Town deal,05/03/2021,0000464651,"45,450.00",Revenue,Tetra Tech Environment Planning Transport Ltd,0
South Ribble Borough Council,http://statistics.data.gov.uk/id/local-authority/30UE,Open Spaces,4510,Services,Carr Wood bee hive management as per NAME REDACTED,03/03/2021,0000464901,450.00,Revenue,The Bee centre,0
South Ribble Borough Council,http://statistics.data.gov.uk/id/local-authority/30UE,Recreation & Sport,4242,Communications & Comuting,"Please undertake a Wi-Fi survey on South Ribble tennis Centre, Bamber Bridge Leisure Centre, Leyland Leisure Centre  & Penwortham Leisure ",12/03/2021,0000465234,325.00,Revenue,The Networking People (TNP) Ltd,0
South Ribble Borough Council,http://statistics.data.gov.uk/id/local-authority/30UE,Recreation & Sport,4242,Communications & Comuting,"Please undertake a Wi-Fi survey on South Ribble tennis Centre, Bamber Bridge Leisure Centre, Leyland Leisure Centre  & Penwortham Leisure ",12/03/2021,0000465234,325.00,Revenue,The Networking People (TNP) Ltd,0
South Ribble Borough Council,http://statistics.data.gov.uk/id/local-authority/30UE,Recreation & Sport,4242,Communications & Comuting,"Please undertake a Wi-Fi survey on South Ribble tennis Centre, Bamber Bridge Leisure Centre, Leyland Leisure Centre  & Penwortham Leisure ",12/03/2021,0000465234,325.00,Revenue,The Networking People (TNP) Ltd,0
South Ribble Borough Council,http://statistics.data.gov.uk/id/local-authority/30UE,Recreation & Sport,4242,Communications & Comuting,"Please undertake a Wi-Fi survey on South Ribble tennis Centre, Bamber Bridge Leisure Centre, Leyland Leisure Centre  & Penwortham Leisure ",12/03/2021,0000465234,325.00,Revenue,The Networking People (TNP) Ltd,0
South Ribble Borough Council,http://statistics.data.gov.uk/id/local-authority/30UE,Central Support Services,1408,Training Expenses,6 SESSIONS OF THERAPY FOR NAME REDACTED,10/03/2021,0000464852,240.00,Revenue,THE THERAPY COMPANY,0
South Ribble Borough Council,http://statistics.data.gov.uk/id/local-authority/30UE,Central Support Services,1408,Training Expenses,6 X SESSIONS FOR NAME REDACTED @ 60 PER SESSION,10/03/2021,0000464852,300.00,Revenue,THE THERAPY COMPANY,0
South Ribble Borough Council,http://statistics.data.gov.uk/id/local-authority/30UE,Central Support Services,1408,Training Expenses,6 X SESSIONS FOR NAME REDACTED  ,10/03/2021,0000464852,120.00,Revenue,THE THERAPY COMPANY,0
South Ribble Borough Council,http://statistics.data.gov.uk/id/local-authority/30UE,Central Support Services,1408,Training Expenses,6 SESSIONS OF THERAPY FOR NAME REDACTED @ 60,10/03/2021,0000464852,360.00,Revenue,THE THERAPY COMPANY,0
South Ribble Borough Council,http://statistics.data.gov.uk/id/local-authority/30UE,Central Support Services,2304,Energy Costs,31/1/21 to 28/2/21,10/03/2021,0000465141,"2,246.34",Revenue,Total Gas & power Ltd,0
South Ribble Borough Council,http://statistics.data.gov.uk/id/local-authority/30UE,Central Support Services,2307,Energy Costs,CCL,10/03/2021,0000465141,273.20,Revenue,Total Gas & power Ltd,0
South Ribble Borough Council,http://statistics.data.gov.uk/id/local-authority/30UE,Open Spaces,2303,Energy Costs,1/2 to 28/2/21,10/03/2021,0000465165,497.62,Revenue,Total Gas & power Ltd,0
South Ribble Borough Council,http://statistics.data.gov.uk/id/local-authority/30UE,Open Spaces,2307,Energy Costs,CCL,10/03/2021,0000465165,21.54,Revenue,Total Gas & power Ltd,0
South Ribble Borough Council,http://statistics.data.gov.uk/id/local-authority/30UE,Central Support Services,2303,Energy Costs,1/2 to 28/2/21,10/03/2021,0000465170,"3,134.00",Revenue,Total Gas & power Ltd,0
South Ribble Borough Council,http://statistics.data.gov.uk/id/local-authority/30UE,Central Support Services,2307,Energy Costs,CCL,10/03/2021,0000465170,167.47,Revenue,Total Gas & power Ltd,0
South Ribble Borough Council,http://statistics.data.gov.uk/id/local-authority/30UE,Open Spaces,2303,Energy Costs,1/2 to 28/2/21,10/03/2021,0000465171,453.71,Revenue,Total Gas & power Ltd,0
South Ribble Borough Council,http://statistics.data.gov.uk/id/local-authority/30UE,Open Spaces,2307,Energy Costs,CCL,10/03/2021,0000465171,22.37,Revenue,Total Gas & power Ltd,0
South Ribble Borough Council,http://statistics.data.gov.uk/id/local-authority/30UE,Economic Development,2303,Energy Costs,1/2 to 28/2/21,10/03/2021,0000465173,709.41,Revenue,Total Gas & power Ltd,0
South Ribble Borough Council,http://statistics.data.gov.uk/id/local-authority/30UE,Economic Development,2037,Premises Repair & Mtne,CCL,10/03/2021,0000465173,31.02,Revenue,Total Gas & power Ltd,0
South Ribble Borough Council,http://statistics.data.gov.uk/id/local-authority/30UE,Central Support Services,2303,Energy Costs,1/2/ to 28/2/21,10/03/2021,0000465174,"2,545.89",Revenue,Total Gas & power Ltd,0
South Ribble Borough Council,http://statistics.data.gov.uk/id/local-authority/30UE,Central Support Services,2307,Energy Costs,CCL,10/03/2021,0000465174,142.16,Revenue,Total Gas & power Ltd,0
South Ribble Borough Council,http://statistics.data.gov.uk/id/local-authority/30UE,Surplus or Deficit on Trading,2303,Energy Costs,4/11/20 to 31/1/21,24/03/2021,0000465927,274.90,Revenue,Total Gas & power Ltd,0
South Ribble Borough Council,http://statistics.data.gov.uk/id/local-authority/30UE,Open Spaces,4657,Expenses,Clearance of non-native laurels and stump grinding at Hurst Grange Park Penwortham,26/03/2021,0000465809,"1,900.00",Revenue,Trunks Tree Care Ltd,0
South Ribble Borough Council,http://statistics.data.gov.uk/id/local-authority/30UE,Central Support Services,1710,Other Employee Expenses,Healthcare period 01/02/2021 - 28/02/2021,10/03/2021,0000464940,"1,301.80",Revenue,UK healthcare (BDHSC),0
South Ribble Borough Council,http://statistics.data.gov.uk/id/local-authority/30UE,Central Support Services,1710,Other Employee Expenses,Healthcare period 01/12/2020 - 31/12/2020,10/03/2021,0000464941,"1,301.80",Revenue,UK healthcare (BDHSC),0
South Ribble Borough Council,http://statistics.data.gov.uk/id/local-authority/30UE,Central Support Services,1710,Other Employee Expenses,Healthcare period 01/01/2021 - 31/01/2021,10/03/2021,0000464942,"1,297.20",Revenue,UK healthcare (BDHSC),0
South Ribble Borough Council,http://statistics.data.gov.uk/id/local-authority/30UE,Central Support Services,1710,Other Employee Expenses,01 mar 2021,10/03/2021,0000465088,"1,324.80",Revenue,UK healthcare (BDHSC),0
South Ribble Borough Council,http://statistics.data.gov.uk/id/local-authority/30UE,Street Cleansing,4570,Services,Sign Cleaning around the borough to supplied plans Week commencing 15th February 2021 for 2 weeks 40 hour per week @ 19.00 per hour,03/03/2021,0000464925,"1,520.00",Revenue,ULTRA CLEAN CONSERVATORIES,0
South Ribble Borough Council,http://statistics.data.gov.uk/id/local-authority/30UE,Capital,C570,Deferrd Chgs-Improvemnt Grants,DFG WORKS TO BATHROOM/RAMP AT ADDRESS REDACTED AS PER QUOTE SUPPLIED FOR SRBC PLANS MINUS ARCHITECT FEE ,10/03/2021,0000465081,"4,500.00",Revenue,Ultra Restore Ltd,0
South Ribble Borough Council,http://statistics.data.gov.uk/id/local-authority/30UE,Community Safety Services,4013,Furniture- Equip & Materials,Renewal of 2 x 15 Gig Data SIMS (on 3) 29.9.17 - 28.2.21 Hough Lane CCTV,26/03/2021,0000466163,"1,231.89",Revenue,Vemotion Interactive Ltd,0
South Ribble Borough Council,http://statistics.data.gov.uk/id/local-authority/30UE,Community Safety Services,4013,Furniture- Equip & Materials,Renewal of 2 x 15 Gig Data SIMS (on 3) 10.3.18 - 28.2.21 Withy Grove & Moss Side Community Centre CCTV,26/03/2021,0000466163,"1,072.10",Revenue,Vemotion Interactive Ltd,0
South Ribble Borough Council,http://statistics.data.gov.uk/id/local-authority/30UE,Community Safety Services,4013,Furniture- Equip & Materials,Renewal of 1 x 30 Gig Data SIM (on EE) 1.8.19 - 28.2.21 Royal Avenue CCTV,26/03/2021,0000466163,285.04,Revenue,Vemotion Interactive Ltd,0
South Ribble Borough Council,http://statistics.data.gov.uk/id/local-authority/30UE,Community Safety Services,4013,Furniture- Equip & Materials,Renewal of 2 x 5 Gig Data SIMS (on EE)  21.11.19 - 28.2.21 Worden Park CCTV,26/03/2021,0000466163,919.23,Revenue,Vemotion Interactive Ltd,0
South Ribble Borough Council,http://statistics.data.gov.uk/id/local-authority/30UE,Democratic Represent and  Mgnt,4012,Furniture- Equip & Materials,2020 / 2021 annual contract for the monthly rental of hot drinks machines at the civic centre including environmental charge.,03/03/2021,0000464869,291.98,Revenue,VENDING ENTERPRISES,0
South Ribble Borough Council,http://statistics.data.gov.uk/id/local-authority/30UE,Central Support Services,4247,Communications & Comuting,0 mar 2021,05/03/2021,0000464945,"2,404.20",Revenue,VODAFONE RE:CABLE & WIRELESS UK,0
South Ribble Borough Council,http://statistics.data.gov.uk/id/local-authority/30UE,Central Support Services,4269,Communications & Comuting,25 feb 2021,05/03/2021,0000464947,"3,429.47",Revenue,VODAFONE RE:CABLE & WIRELESS UK,0
South Ribble Borough Council,http://statistics.data.gov.uk/id/local-authority/30UE,Central Support Services,2511,Water,Civic Centre Water underpaid,03/03/2021,0000464926,"1,085.35",Revenue,WATER PLUS,0
South Ribble Borough Council,http://statistics.data.gov.uk/id/local-authority/30UE,Community Development,4730,Grants & Subscriptions,x5 22x18 +3 plain white carrier bags at 105 each.,24/03/2021,0000465808,525.00,Revenue,Weldbank Plastic Company Limited,0
South Ribble Borough Council,http://statistics.data.gov.uk/id/local-authority/30UE,Community Development,4851,Miscellaneous Expenses,"Supply, erect and light Christmas trees at Leyland Cross and at Gregson Lane",10/03/2021,0000465197,"2,297.52",Revenue,WESTFIELD TREE SERVICES LTD,0
South Ribble Borough Council,http://statistics.data.gov.uk/id/local-authority/30UE,Local Tax Collection,4130,Printing- Stat & Office Expens,Mail services for  Revenues and Benefits October - March 2021,26/03/2021,0000466021,"1,186.11",Revenue,WHISTL  UK LTD,0
South Ribble Borough Council,http://statistics.data.gov.uk/id/local-authority/30UE,Open Spaces,4657,Expenses,To Carry out Grounds Investigations as per Quote.,26/03/2021,0000464693,"2,960.00",Revenue,WORMS EYE LIMITED,0
South Ribble Borough Council,http://statistics.data.gov.uk/id/local-authority/30UE,Capital,C570,Deferrd Chgs-Improvemnt Grants,DFG WORK TO CREATE A LEVEL ACCESS SHOWER AT ADDRESS REDACTED AS PER QUOTE SUPPLIED OF 3996.20 GRANT  1998.10,03/03/2021,0000464897,"1,998.10",Revenue,Wright Build Limited,0
South Ribble Borough Council,http://statistics.data.gov.uk/id/local-authority/30UE,Suspended Items,4510,Services,Investigation Survey at Quinn Street,03/03/2021,0000464916,450.00,Revenue,Your Environmental Company Ltd T/A YourEnvironment,0
South Ribble Borough Council,http://statistics.data.gov.uk/id/local-authority/30UE,Corporate Management,5311,Contractors Chges,NAME REDACTED damage reimbursement,03/03/2021,0000464723,"1,086.11",Revenue,NAME REDACTED,0
South Ribble Borough Council,http://statistics.data.gov.uk/id/local-authority/30UE,Central Support Services,1800,Employee Related Insurance,ZM Combined policy covers 2021 including IPT. Employers and Public and Products Liability Motor Fleet & Leased cars Additional Covers,10/03/2021,0000464990,"173,810.71",Revenue,Zurich Municipal Insurance plc,0
